{"text_format":"3","workbook":"xlsx","n_sheets":22,"sheets":["Табл 1","Табл 2 (пустая)","Табл 3 (ЦБ)","Табл 4 (ЦБ)","Табл 5 (ЦБ)","Табл 5-1 (ЦБ)","Табл 5-2 (ЦБ)","Табл 6 (ЦБ)","Табл 7 (учрежд)","Табл 7-1 (ЦБ)","Табл 8 (ЦБ)","Табл 9 (учр+цб)","Табл 9-1","Табл 10","Табл 11","Табл 11-1","Табл 11-2","Табл 11-3","Табл 12","Табл 12-1","Табл 12-2","Табл 12-3"],"not_rendered":{"defined_names":3},"read":"whole","date_system":"1900"}

{"sheet":"Табл 1","index":0,"n_rows":59,"n_cols":11,"rows_kept":59,"merged":[[9,0,9,10],[10,0,10,10],[11,0,11,10],[17,1,17,8],[18,1,18,8],[19,1,19,8],[22,0,22,10],[23,0,25,0],[23,1,25,1],[23,2,25,2],[23,3,23,5],[23,6,25,6],[23,7,25,7],[23,8,23,10],[24,3,24,4],[24,5,25,5],[24,8,25,8],[24,9,25,9],[24,10,25,10],[32,0,32,10],[33,0,35,0],[33,1,35,1],[33,2,35,2],[33,3,33,5],[33,6,35,6],[33,7,35,7],[33,8,33,10],[34,3,34,4],[34,5,35,5],[34,8,35,8],[34,9,35,9],[34,10,35,10],[42,0,42,10],[43,0,45,0],[43,1,45,1],[43,2,45,2],[43,3,43,5],[43,6,45,6],[43,7,45,7],[43,8,43,10],[44,3,44,4],[44,5,45,5],[44,8,45,8],[44,9,45,9],[44,10,45,10],[54,1,54,2],[54,4,54,6],[54,8,54,9],[55,1,55,2],[55,4,55,6],[55,8,55,9],[56,1,56,2],[56,4,56,6],[56,8,56,9],[57,1,57,2],[57,4,57,6],[57,8,57,9],[58,1,58,5]]}
[{"$nulls":10},"Приложение"]
[{"$nulls":10},"к Порядку составления и утверждения отчета"]
[{"$nulls":10},"о результатах деятельности муниципального учреждения,"]
[{"$nulls":10},"подведомственного Администрации Прионежского муниципального района,"]
[{"$nulls":10},"и об использовании закрепленного за ним муниципального имущества,"]
[{"$nulls":10},"утвержденным постановлением Администрации"]
[{"$nulls":10},"Прионежского муниципального района"]
[{"$nulls":10},"от \"3\" июня 2022 года № 614"]
[]
["Сведения об оказываемых услугах, выполняемых работах"]
[" сверх установленного муниципального задания, а также выпускаемой продукции"]
["на 1 января 2025 г."]
[]
[{"$nulls":10},"КОДЫ"]
[{"$nulls":9},"Дата"]
[{"$nulls":9},"по Сводному реестру",86300402]
[{"$nulls":9},"ИНН",1001112534]
["Учреждение","Муниципальное общеобразовательное учреждение \"Средняя общеобразовательная школа № 44\"",{"$nulls":7},"КПП",102001001]
["Орган, осуществляющий функции и полномочия учредителя","Администрация Прионежского муниципального района",{"$nulls":7},"глава по БК","015"]
["Публично-правовое образование","Прионежский муниципальный район",{"$nulls":7},"по ОКТМО",86636410]
["Периодичность: годовая"]
[]
["Раздел 1. Сведения об услугах, оказываемых сверх установленного муниципального задания"]
["Наименование оказываемых услуг","Код по ОКВЭД","Код строки","Объем оказанных услуг",null,null,"Доход от оказания услуг, руб","Цена (тариф)","Справочно: реквизиты акта, которым установлена цена (тариф)"]
[{"$nulls":3},"единица измерения",null,"всего",null,null,"кем издан (ОМСУ, учреждение)","дата","номер"]
[{"$nulls":3},"наименование","код по ОКЕИ"]
[1,2,3,4,5,6,7,8,9,10,11]
[null,null,1000]
[null,null,2000]
[]
[null,"Итого",9000,"x","x",0,0,0,"x","x","x"]
[]
["Раздел 2. Сведения о работах, выполняемых сверх установленного муниципального задания"]
["Наименование выполняемых работ","Код по ОКВЭД","Код строки","Объем выполненных работ",null,null,"Доход от выполнения работ, руб","Цена (тариф)","Справочно: реквизиты акта, которым установлена цена (тариф)"]
[{"$nulls":3},"единица измерения",null,"всего",null,null,"кем издан (ОМСУ, учреждение)","дата","номер"]
[{"$nulls":3},"наименование","код по ОКЕИ"]
[1,2,3,4,5,6,7,8,9,10,11]
[null,null,1000]
[null,null,2000]
[]
[null,"Итого",9000,"x","x",0,0,0,"x","x","x"]
[]
["Раздел 3. Сведения о производимой продукции"]
["Наименование производимой продукции","Код по ОКВЭД","Код строки","Объем произведенной продукции",null,null,"Доход от реализации продукции, руб","Цена (тариф)","Справочно: реквизиты акта, которым установлена цена (тариф)"]
[{"$nulls":3},"единица измерения",null,"всего",null,null,"кем издан (ОМСУ, учреждение)","дата","номер"]
[{"$nulls":3},"наименование","код по ОКЕИ"]
[1,2,3,4,5,6,7,8,9,10,11]
[null,null,1000]
[null,null,2000]
[]
[null,"Итого",9000,"x","x",0,0,0,"x","x","x"]
[]
[]
["Руководитель"]
["(уполномоченное лицо) Учреждения","Директор",{"$nulls":6},"И.А.Сидорова"]
[null,"(должность)",null,null,"(подпись)",{"$nulls":3},"(расшифровка подписи)"]
["Исполнитель"]
[null,"(должность)",null,null,"(фамилия, инициалы)",{"$nulls":3},"(телефон)"]
["\"__\" __________ 20__ г."]

{"sheet":"Табл 2 (пустая)","index":1,"n_rows":32,"n_cols":13,"rows_kept":32,"merged":[[0,0,0,10],[1,0,1,10],[4,0,4,10],[7,1,7,10],[8,1,8,10],[9,1,9,10],[13,0,13,4],[13,5,14,5],[13,6,14,6],[13,7,14,7],[13,8,14,8],[13,9,14,9],[13,10,13,11],[13,12,14,12],[22,1,23,3],[22,4,23,4],[22,5,23,7],[22,9,23,10],[24,1,24,3],[24,5,24,7],[24,9,24,10],[25,1,25,3],[25,5,25,7],[25,9,25,10],[26,1,26,3],[26,5,26,7],[26,9,26,10],[27,1,27,5],[30,0,30,9],[31,0,31,7]]}
["Сведения о доходах учреждения в виде прибыли, приходящейся на доли"]
["в уставных (складочных) капиталах хозяйственных товариществ и обществ, или дивидендов по акциям, принадлежащим учреждению <1>"]
[]
[{"$nulls":12},"КОДЫ"]
["на 1 января 2025 г.",{"$nulls":10},"Дата"]
[{"$nulls":11},"по Сводному реестру",86300402]
[{"$nulls":11},"ИНН",1001112534]
["Учреждение","Муниципальное общеобразовательное учреждение \"Средняя общеобразовательная школа № 44\"",{"$nulls":9},"КПП",102001001]
["Орган, осуществляющий функции и полномочия учредителя","Администрация Прионежского муниципального района",{"$nulls":9},"глава по БК","015"]
["Публично-правовое образование","Прионежский муниципальный район",{"$nulls":9},"по ОКТМО",86636410]
["Периодичность: годовая"]
[]
[]
["Организация (предприятие)",{"$nulls":4},"Код строки","Сумма вложений в уставный капитал","Доля в уставном капитале, %","Вид вложений <2>","Задолженность перед учреждением по перечислению части прибыли (дивидендов) на начало года","Доходы, подлежащие получению за отчетный период",null,"Задолженность перед учреждением по перечислению части прибыли (дивидендов) на конец отчетного периода"]
["наименование","ИНН","код по ОКОПФ","дата создания","основной вид деятельности",{"$nulls":5},"начислено, руб","поступило, руб"]
[1,2,3,4,5,6,7,8,9,10,11,12,13]
[{"$nulls":5},1000]
[{"$nulls":5},2000]
[]
[{"$nulls":4},"Итого",9000,0,"x","x",0,0,0,0]
[]
[]
["Руководитель","Директор",{"$nulls":7},"И.А.Сидорова"]
["(уполномоченное лицо) Учреждения"]
[null,"(должность)",{"$nulls":3},"(подпись)",{"$nulls":3},"(расшифровка подписи)"]
["Исполнитель"]
[null,"(должность)",{"$nulls":3},"(фамилия, инициалы)",{"$nulls":3},"(телефон)"]
["\"__\" __________ 20__ г."]
[]
["--------------------------------"]
["<1> Сведения формируются в случаях, если в соответствии с законодательством Российской Федерации установлена возможность создания хозяйственных товариществ и обществ."]
["<2> Указывается вид вложений \"1\" - денежные средства, \"2\" - имущество, \"3\" - право пользования нематериальными активами."]

{"sheet":"Табл 3 (ЦБ)","index":2,"n_rows":49,"n_cols":17,"rows_kept":49,"merged":[[0,0,0,14],[3,0,3,14],[6,1,6,14],[7,1,7,14],[8,1,8,14],[12,0,14,0],[12,1,14,1],[12,2,12,3],[12,4,12,6],[12,7,12,12],[12,13,12,14],[12,15,14,15],[12,16,14,16],[13,2,14,2],[13,3,14,3],[13,4,13,5],[13,6,14,6],[13,7,14,7],[13,8,14,8],[13,9,13,12],[13,13,14,13],[13,14,14,14],[19,1,20,1],[19,2,20,2],[19,3,20,3],[19,4,20,4],[19,5,20,5],[19,6,20,6],[19,7,20,7],[19,8,20,8],[19,9,20,9],[19,10,20,10],[19,11,20,11],[19,12,20,12],[19,13,20,13],[19,14,20,14],[19,15,20,15],[19,16,20,16],[24,1,25,1],[24,2,25,2],[24,3,25,3],[24,4,25,4],[24,5,25,5],[24,6,25,6],[24,7,25,7],[24,8,25,8],[24,9,25,9],[24,10,25,10],[24,11,25,11],[24,12,25,12],[24,13,25,13],[24,14,25,14],[24,15,25,15],[24,16,25,16],[29,1,30,1],[29,2,30,2],[29,3,30,3],[29,4,30,4],[29,5,30,5],[29,6,30,6],[29,7,30,7],[29,8,30,8],[29,9,30,9],[29,10,30,10],[29,11,30,11],[29,12,30,12],[29,13,30,13],[29,14,30,14],[29,15,30,15],[29,16,30,16],[32,1,33,1],[32,2,33,2],[32,3,33,3],[32,4,33,4],[32,5,33,5],[32,6,33,6],[32,7,33,7],[32,8,33,8],[32,9,33,9],[32,10,33,10],[32,11,33,11],[32,12,33,12],[32,13,33,13],[32,14,33,14],[32,15,33,15],[32,16,33,16],[37,1,38,3],[37,4,38,4],[37,5,38,7],[37,9,38,11],[39,1,39,3],[39,5,39,7],[39,9,39,11],[40,1,40,3],[40,5,40,7],[40,9,40,11],[41,1,41,3],[41,5,41,7],[41,9,41,11],[42,1,42,5],[45,0,45,16],[46,0,46,16],[47,0,47,16],[48,0,48,16]]}
["Сведения о просроченной кредиторской задолженности"]
[]
[{"$nulls":16},"КОДЫ"]
["на 1 января 2025 г.",{"$nulls":14},"Дата"]
[{"$nulls":15},"по Сводному реестру",86300402]
[{"$nulls":15},"ИНН",1001112534]
["Учреждение","Муниципальное общеобразовательное учреждение \"Средняя общеобразовательная школа № 44\"",{"$nulls":13},"КПП",102001001]
["Орган, осуществляющий функции и полномочия учредителя","Администрация Прионежского муниципального района",{"$nulls":13},"глава по БК","015"]
["Публично-правовое образование","Прионежский муниципальный район",{"$nulls":13},"по ОКТМО",86636410]
["Периодичность: годовая"]
[]
[]
["Наименование показателя","Код строки","Объем просроченной кредиторской задолженности на начало года",null,"Предельно допустимые значения просроченной кредиторской задолженности <3>",null,null,"Объем просроченной кредиторской задолженности на конец отчетного периода",{"$nulls":5},"Изменение кредиторской задолженности <6>",null,"Причина образования","Меры, принимаемые по погашению просроченной кредиторской задолженности"]
[null,null,"всего","из нее по исполнительным листам","значение",null,"срок, дней","всего","из нее по исполнительным листам","в том числе по срокам",{"$nulls":3},"сумма, руб","в процентах"]
[{"$nulls":4},"в абсолютных величинах <4>","в процентах <5>",{"$nulls":3},"менее 30 дней просрочки","от 30 до 90 дней просрочки","от 90 до 180 дней просрочки","более 180 дней просрочки"]
[1,2,3,4,5,6,7,8,9,10,11,12,13,14,15,16,17]
["По выплате заработной платы",1000,{"v":0,"d":"0.00 "},{"v":0,"d":"0.00 "},{"$nulls":3},{"v":0,"d":"0.00 "},{"v":0,"d":"0.00 "},{"$nulls":4},{"v":0,"d":"0.00 "},0]
["По выплате стипендий, пособий, пенсий",2000,{"v":0,"d":"0.00 "},{"v":0,"d":"0.00 "},{"$nulls":3},{"v":0,"d":"0.00 "},{"v":0,"d":"0.00 "},{"$nulls":4},{"v":0,"d":"0.00 "},0]
["По перечислению в бюджет, всего",3000,{"v":0,"d":"0.00 "},{"v":0,"d":"0.00 "},{"$nulls":3},{"v":0,"d":"0.00 "},{"v":0,"d":"0.00 "},{"$nulls":4},{"v":0,"d":"0.00 "},0]
["в том числе:",3100]
["по перечислению удержанного налога на доходы физических лиц"]
["по оплате страховых взносов на обязательное социальное страхование",3200]
["по оплате налогов, сборов, за исключением страховых взносов на обязательное социальное страхование",3300]
["по возврату в бюджет средств субсидий (грантов в форме субсидий)",3400]
["из них:",3410]
["в связи с невыполнением муниципального задания"]
["в связи с недостижением результатов предоставления субсидий (грантов в форме субсидий)",3420]
["в связи с невыполнением условий соглашений, в том числе по софинансированию расходов",3430]
["По оплате товаров, работ, услуг, всего",4000,{"v":0,"d":"0.00"},{"v":0,"d":"0.00"},{"$nulls":3},{"v":0,"d":"0.00"},{"v":0,"d":"0.00"},{"$nulls":4},{"v":0,"d":"0.00"},{"v":0,"d":"0.00"}]
["из них:",4100]
["по публичным договорам"]
["По оплате прочих расходов, всего",5000,{"v":0,"d":"0.00"},{"v":0,"d":"0.00"},{"$nulls":3},{"v":0,"d":"0.00"},{"v":0,"d":"0.00"},{"$nulls":4},{"v":0,"d":"0.00"},{"v":0,"d":"0.00"}]
["из них:",5100]
["по выплатам, связанным с причинением вреда гражданам"]
["Итого",9000,{"v":0,"d":"0.00"},"x",{"$nulls":3},"x",{"v":0,"d":"0.00"},{"$nulls":4},{"v":0,"d":"0.00"},{"v":0,"d":"0.00"}]
[]
[]
["Руководитель","Директор",{"$nulls":7},"И.А.Сидорова"]
["(уполномоченное лицо) Учреждения"]
[null,"(должность)",{"$nulls":3},"(подпись)",{"$nulls":3},"(расшифровка подписи)"]
["Исполнитель"]
[null,"(должность)",{"$nulls":3},"(фамилия, инициалы)",{"$nulls":3},"(телефон)"]
["\"__\" __________ 20__ г."]
[]
["--------------------------------"]
["<3> Указываются предельно допустимые значения, установленные органом, осуществляющим функции и полномочия учредителя."]
["<4> Заполняется в случае, если значения просроченной кредиторской задолженности установлены органом, осуществляющим функции и полномочия учредителя, в абсолютных значениях (рублях)."]
["<5> Заполняется в случае, если значения просроченной кредиторской задолженности установлены органом, осуществляющим функции и полномочия учредителя, в процентах от общей суммы кредиторской задолженности."]
["<6> Указывается общая сумма увеличения или уменьшения кредиторской задолженности."]

{"sheet":"Табл 4 (ЦБ)","index":3,"n_rows":42,"n_cols":15,"rows_kept":42,"merged":[[0,0,0,12],[2,0,2,12],[5,1,5,12],[6,1,6,12],[7,1,7,12],[11,0,13,0],[11,1,13,1],[11,2,11,3],[11,4,11,6],[11,7,11,10],[11,11,11,12],[11,13,11,14],[12,2,13,2],[12,3,13,3],[12,4,13,4],[12,5,12,6],[12,7,13,7],[12,8,12,9],[12,10,13,10],[12,11,13,11],[12,12,13,12],[12,13,13,13],[12,14,13,14],[16,1,17,1],[16,2,17,2],[16,3,17,3],[16,4,17,4],[16,5,17,5],[16,6,17,6],[16,7,17,7],[16,8,17,8],[16,9,17,9],[16,10,17,10],[16,11,17,11],[16,12,17,12],[16,13,17,13],[16,14,17,14],[18,1,19,1],[18,2,19,2],[18,3,19,3],[18,4,19,4],[18,5,19,5],[18,6,19,6],[18,7,19,7],[18,8,19,8],[18,9,19,9],[18,10,19,10],[18,11,19,11],[18,12,19,12],[18,13,19,13],[18,14,19,14],[23,1,24,1],[23,2,24,2],[23,3,24,3],[23,4,24,4],[23,5,24,5],[23,6,24,6],[23,7,24,7],[23,8,24,8],[23,9,24,9],[23,10,24,10],[23,11,24,11],[23,12,24,12],[23,13,24,13],[23,14,24,14],[25,1,26,1],[25,2,26,2],[25,3,26,3],[25,4,26,4],[25,5,26,5],[25,6,26,6],[25,7,26,7],[25,8,26,8],[25,9,26,9],[25,10,26,10],[25,11,26,11],[25,12,26,12],[25,13,26,13],[25,14,26,14],[30,1,31,1],[30,2,31,2],[30,3,31,3],[30,4,31,4],[30,5,31,5],[30,6,31,6],[30,7,31,7],[30,8,31,8],[30,9,31,9],[30,10,31,10],[30,11,31,11],[30,12,31,12],[30,13,31,13],[30,14,31,14],[36,1,37,3],[36,4,37,4],[36,5,37,7],[36,9,37,11],[38,1,38,3],[38,5,38,7],[38,9,38,11],[39,1,39,3],[39,5,39,7],[39,9,39,11],[40,1,40,3],[40,5,40,7],[40,9,40,11],[41,1,41,5]]}
["Сведения о задолженности по ущербу, недостачам, хищениям денежных средств и материальных ценностей"]
[]
["на 1 января 2025 г.",{"$nulls":13},"КОДЫ"]
[{"$nulls":13},"Дата"]
[{"$nulls":13},"по Сводному реестру",86300402]
["Учреждение","Муниципальное общеобразовательное учреждение \"Средняя общеобразовательная школа № 44\"",{"$nulls":11},"ИНН",1001112534]
["Орган, осуществляющий функции и полномочия учредителя","Администрация Прионежского муниципального района",{"$nulls":11},"КПП",102001001]
["Публично-правовое образование","Прионежский муниципальный район",{"$nulls":11},"глава по БК","015"]
["Периодичность: годовая",{"$nulls":12},"по ОКТМО",86636410]
[]
[]
["Наименование показателя","Код строки","Остаток задолженности по возмещению ущерба на начало года",null,"Выявлено недостач, хищений, нанесения ущерба",null,null,"Возмещено недостач, хищений, нанесения ущерба",{"$nulls":3},"Списано",null,"Остаток задолженности по возмещению ущерба на конец отчетного периода"]
[null,null,"всего","из него на взыскании в службе судебных приставов","всего","в том числе:",null,"всего","из них взыскано с виновных лиц",null,"страховыми организациями","всего","из них в связи с прекращением взыскания по исполнительным листам","всего","из него на взыскании в службе судебных приставов"]
[{"$nulls":5},"виновные лица установлены","виновные лица не установлены",null,"всего","из них по решению суда"]
[1,2,3,4,5,6,7,8,9,10,11,12,13,14,15]
["Недостача, хищение денежных средств, всего","0100",{"v":0,"d":"0.00"},{"v":0,"d":"0.00"},{"v":0,"d":"0.00"},{"v":0,"d":"0.00"},{"v":0,"d":"0.00"},{"v":0,"d":"0.00"},{"v":0,"d":"0.00"},{"v":0,"d":"0.00"},{"v":0,"d":"0.00"},{"v":0,"d":"0.00"},{"v":0,"d":"0.00"},{"v":0,"d":"0.00"},{"v":0,"d":"0.00"}]
["в том числе:","0110"]
["в связи с хищением (кражами)"]
["из них:","0111",{"$nulls":5},"x",null,"x","x"]
["возбуждено уголовных дел (находится в следственных органах)"]
["в связи с выявлением при обработке наличных денег денежных знаков, имеющих признаки подделки","0120"]
["в связи с банкротством кредитной организации","0130"]
["Ущерб имуществу (за исключением денежных средств)","0200",{"v":0,"d":"0.00"},{"v":0,"d":"0.00"},{"v":0,"d":"0.00"},{"v":0,"d":"0.00"},{"v":0,"d":"0.00"},{"v":0,"d":"0.00"},{"v":0,"d":"0.00"},{"v":0,"d":"0.00"},{"v":0,"d":"0.00"},{"v":0,"d":"0.00"},{"v":0,"d":"0.00"},{"v":0,"d":"0.00"},{"v":0,"d":"0.00"}]
["в том числе:","0210"]
["в связи с недостачами, включая хищения (кражи)"]
["из них:","0211"]
["возбуждено уголовных дел (находится в следственных органах)"]
["в связи с нарушением правил хранения","0220"]
["в связи с нанесением ущерба техническому состоянию объекта","0230"]
["В связи с нарушением условий договоров (контрактов)","0300",{"v":0,"d":"0.00"},{"v":0,"d":"0.00"},{"v":0,"d":"0.00"},{"v":0,"d":"0.00"},{"v":0,"d":"0.00"},{"v":0,"d":"0.00"},{"v":0,"d":"0.00"},{"v":0,"d":"0.00"},{"v":0,"d":"0.00"},{"v":0,"d":"0.00"},{"v":0,"d":"0.00"},{"v":0,"d":"0.00"},{"v":0,"d":"0.00"}]
["в том числе:","0310"]
["в связи с нарушением сроков (начислено пени, штрафов, неустойки)"]
["в связи с невыполнением условий о возврате предоплаты (аванса)","0320"]
["Итого",9000,{"v":0,"d":"0.00"},{"v":0,"d":"0.00"},{"v":0,"d":"0.00"},{"v":0,"d":"0.00"},{"v":0,"d":"0.00"},{"v":0,"d":"0.00"},{"v":0,"d":"0.00"},{"v":0,"d":"0.00"},{"v":0,"d":"0.00"},{"v":0,"d":"0.00"},{"v":0,"d":"0.00"},{"v":0,"d":"0.00"},{"v":0,"d":"0.00"}]
[]
[]
["Руководитель","Директор",{"$nulls":7},"И.А.Сидорова"]
["(уполномоченное лицо) Учреждения"]
[null,"(должность)",{"$nulls":3},"(подпись)",{"$nulls":3},"(расшифровка подписи)"]
["Исполнитель"]
[null,"(должность)",{"$nulls":3},"(фамилия, инициалы)",{"$nulls":3},"(телефон)"]
["\"__\" __________ 20__ г."]

{"sheet":"Табл 5 (ЦБ)","index":4,"n_rows":39,"n_cols":17,"rows_kept":39,"merged":[[0,0,0,14],[3,0,3,14],[6,1,6,14],[7,1,7,14],[8,1,8,14],[11,0,11,16],[12,0,16,0],[12,1,16,1],[12,2,12,5],[12,6,12,10],[12,11,12,12],[12,13,12,16],[13,2,13,3],[13,4,13,5],[13,6,16,6],[13,7,13,10],[13,11,13,12],[13,13,13,14],[13,15,13,16],[14,2,16,2],[14,3,16,3],[14,4,16,4],[14,5,16,5],[14,7,14,8],[14,9,16,9],[14,10,16,10],[14,11,16,11],[14,12,16,12],[14,13,16,13],[14,14,16,14],[14,15,16,15],[14,16,16,16],[15,7,16,7],[15,8,16,8],[30,0,30,13],[31,0,31,13],[32,0,32,13],[33,0,33,13],[34,0,34,13],[35,0,35,13],[36,0,36,13],[37,0,37,13],[38,0,38,13]]}
["Сведения о численности сотрудников и оплате труда"]
[]
[{"$nulls":16},"КОДЫ"]
["на 1 января 2025 г.",{"$nulls":14},"Дата"]
[{"$nulls":15},"по Сводному реестру",86300402]
[{"$nulls":15},"ИНН",1001112534]
["Учреждение","Муниципальное общеобразовательное учреждение \"Средняя общеобразовательная школа № 44\"",{"$nulls":13},"КПП",102001001]
["Орган, осуществляющий функции и полномочия учредителя","Администрация Прионежского муниципального района",{"$nulls":13},"глава по БК","015"]
["Публично-правовое образование","Прионежский муниципальный район",{"$nulls":13},"по ОКТМО",86636410]
["Периодичность: годовая"]
[]
["Раздел 1. Сведения о численности сотрудников"]
["Группы персонала (категория персонала)","Код строки","Штатная численность на начало года",{"$nulls":3},"Средняя численность сотрудников за отчетный период",{"$nulls":4},"По договорам гражданско-правового характера <9>",null,"Штатная численность на конец отчетного периода"]
[null,null,"установлено штатным расписанием",null,"в том числе:",null,"всего <7>","в том числе:",{"$nulls":3},"в том числе:",null,"установлено штатным расписанием",null,"в том числе:"]
[null,null,"всего","из нее по основным видам деятельности","замещено","вакантных должностей",null,"по основному месту работы",null,"по внутреннему совместительству (по совмещению должностей) <8>","по внешнему совместительству","сотрудники учреждения <10>","физические лица, не являющиеся сотрудниками учреждения <11>","всего","из нее по основным видам деятельности","замещено","вакантных должностей"]
[{"$nulls":7},"всего","из нее по основным видам деятельности"]
[]
[1,2,3,4,5,6,7,8,9,10,11,12,13,14,15,16,17]
["Основной персонал, всего <12>",1000,25.77,25.77,26.17,null,{"$f":"H19+K19","v":13.299999999999999},{"$f":"I19","v":{"v":13.1,"d":"13.1 "}},13.1,{"v":1,"d":"1 "},0.2,null,null,26.17,26.17,24.21,{"$f":"O19-P19","v":1.9600000000000009}]
["из них: <13>",1100]
[]
["Вспомогательный персонал, всего <14>",2000,7.65,7.65,7.65,null,{"$f":"H22+K22","v":4.9},{"$f":"I22","v":{"v":3.9,"d":"3.9 "}},3.9,0.5,1,null,null,7.65,7.65,6.85,{"$f":"O22-P22","v":0.8000000000000007}]
["из них: <13>",2100]
[]
["Административно-управленческий персонал, всего <15>",3000,3.5,3.5,4,0,{"$f":"H25+K25","v":3.4},{"v":3.4,"d":"3.4 "},3.4,0,{"$nulls":3},4,4,4,{"$f":"O25-P25","v":0}]
["из них: <13>",3100]
[]
["Итого",9000,{"$f":"C19+C22+C25","v":36.92},{"$f":"D19+D22+D25","v":36.92},37.82,0,21.599999999999998,20.4,20.4,{"v":1.5,"d":"1.50 "},1.2,0,0,37.82,37.82,35.06,2.7600000000000016]
[]
["--------------------------------"]
["<7> При расчете показателя не учитывается численность сотрудников учреждения, работающих по внутреннему совместительству (по совмещению должностей)."]
["<8> Указывается численность сотрудников учреждения, работающих по внутреннему совместительству (по совмещению должностей). При расчете общей численности сотрудников учреждения показатель не учитывается."]
["<9> Указывается численность физических лиц, привлекаемых к оказанию услуг, выполнению работ без заключения трудового договора (на основании договоров гражданско-правового характера). Детализация численности по группам персонала указывается в соответствии с предметом договора, в зависимости от характера работ, для выполнения которых привлекается сотрудник."]
["<10> Указывается численность физических лиц, привлекаемых к оказанию услуг, выполнению работ без заключения трудового договора (на основании договоров гражданско-правового характера), являющихся сотрудниками учреждения."]
["<11> Указывается численность физических лиц, привлекаемых к оказанию услуг, выполнению работ без заключения трудового договора (на основании договоров гражданско-правового характера), не являющихся сотрудниками учреждения."]
["<12> Указывается численность работников учреждения, непосредственно оказывающих услуги (выполняющих работы), направленные на достижение определенных уставом учреждения целей деятельности этого учреждения."]
["<13> Детализация показателей по группе (категории) персонала устанавливается порядком органа, осуществляющего функции и полномочия учредителя."]
["<14> Указывается численность работников учреждения, создающих условия для оказания услуг (выполнения работ), направленных на достижение определенных уставом учреждения целей деятельности этого учреждения, включая обслуживание зданий и оборудования."]
["<15> Указывается численность работников учреждения, занятых управлением (организацией) оказания услуг (выполнения работ), а также работников учреждения, выполняющих административные функции, необходимые для обеспечения деятельности учреждения."]

{"sheet":"Табл 5-1 (ЦБ)","index":5,"n_rows":27,"n_cols":16,"rows_kept":27,"merged":[[0,0,0,15],[1,0,6,0],[1,1,6,1],[1,2,1,7],[1,8,1,9],[1,10,1,15],[2,2,6,2],[2,3,2,7],[2,8,2,9],[2,10,2,15],[3,3,3,5],[3,6,6,6],[3,7,6,7],[3,8,6,8],[3,9,6,9],[3,10,3,15],[4,3,6,3],[4,4,4,5],[4,10,6,10],[4,11,6,11],[4,12,4,13],[4,14,6,14],[4,15,6,15],[5,4,6,4],[5,5,6,5],[5,12,5,13],[20,0,20,15],[21,0,21,15],[22,0,22,15],[23,0,23,15],[24,0,24,15],[25,0,25,15],[26,0,26,15]]}
["Раздел 2. Сведения об оплате труда"]
["Группы персонала","Код строки","Фонд начисленной оплаты труда сотрудников за отчетный период, руб",{"$nulls":5},"Начислено по договорам гражданско-правового характера, руб <16>",null,"Аналитическое распределение оплаты труда сотрудников по источникам финансового обеспечения, руб <17>"]
[null,null,"всего","в том числе:",{"$nulls":4},"в том числе:",null,"в том числе:"]
[{"$nulls":3},"по основному месту работы",null,null,"по внутреннему совместительству (совмещению должностей)","по внешнему совместительству","сотрудникам учреждения","физическим лицам, не являющимися сотрудниками учреждения","по основному месту работы"]
[{"$nulls":3},"всего","в том числе на условиях:",{"$nulls":5},"за счет средств субсидии на выполнение муниципального задания","за счет средств субсидии на иные цели","за счет средств гранта в форме субсидии",null,"ОМС <18>","за счет средств от приносящей доход деятельности <19>"]
[{"$nulls":4},"полного рабочего времени","неполного рабочего времени",{"$nulls":6},"в том числе:"]
[{"$nulls":12},"из федерального бюджета","из бюджетов субъектов Российской Федерации и местных бюджетов"]
[1,2,3,4,5,6,7,8,9,10,11,12,13,14,15,16]
["Основной персонал, всего <20>",1000,{"$f":"D9+H9+G9","v":{"v":10949533.6,"d":"10,949,533.60"}},{"$f":"E9+F9","v":{"v":10394230.62,"d":"10,394,230.62"}},{"$f":"10828059.18-G9-F9","v":{"v":10038303.469999999,"d":"10,038,303.47"}},{"v":355927.15,"d":"355,927.15"},{"v":433828.56,"d":"433,828.56"},{"v":121474.42,"d":"121,474.42"}]
["из них: <13>",1100]
[]
["Вспомогательный персонал, всего <21>",2000,{"$f":"D12+H12+G12","v":{"v":2758313.6899999995,"d":"2,758,313.69"}},{"$f":"E12+F12","v":{"v":1904390.2699999998,"d":"1,904,390.27"}},{"$f":"2398163.01-G12-F12","v":{"v":1364416.9899999998,"d":"1,364,416.99"}},{"v":539973.28,"d":"539,973.28"},{"v":493772.74,"d":"493,772.74"},{"v":360150.68,"d":"360,150.68"}]
["из них: <13>",2100]
[]
["Административно-управленческий персонал, всего <22>",3000,{"$f":"D15+H15+G15","v":{"v":3858626.96,"d":"3,858,626.96"}},{"$f":"E15+F15","v":{"v":3858626.96,"d":"3,858,626.96"}},{"v":3858626.96,"d":"3,858,626.96"},{"v":0,"d":"0.00"},{"v":0,"d":"0.00"}]
["из них: <13>",3100]
[]
["Итого",9000,{"$f":"C9+C12+C15","v":{"v":17566474.25,"d":"17,566,474.25"}},{"$f":"D9+D12+D15","v":{"v":16157247.849999998,"d":"16,157,247.85"}},{"v":15261347.419999998,"d":"15,261,347.42"},{"v":895900.43,"d":"895,900.43"},{"v":927601.3,"d":"927,601.30"},{"v":481625.1,"d":"481,625.10"}]
[]
["--------------------------------"]
["<16> Указывается сумма, начисленная по договорам гражданско-правового характера, заключенным с лицами, привлекаемыми для оказания услуг (выполнения работ). Детализация начисленного вознаграждения по группам персонала указывается в соответствии с предметом договора, в зависимости от характера работ, для выполнения которых привлекается сотрудник."]
["<17> Показатели аналитического распределения оплаты труда сотрудников по источникам финансового обеспечения формируются в случае, если требование о детализации установлено органом, осуществляющим функции и полномочия учредителя."]
["<18> Указывается сумма начисленной оплаты труда работникам учреждения, оказывающим услуги (выполняющим работы) в рамках программ обязательного медицинского страхования."]
["<19> Указывается сумма начисленной оплаты труда работникам учреждения, оказывающим услуги (выполняющим работы) в рамках осуществления приносящей доход деятельности."]
["<20> Указывается сумма начисленной оплаты труда работникам учреждения, непосредственно оказывающим услуги (выполняющим работы), направленные на достижение определенных уставом учреждения целей деятельности этого учреждения."]
["<21> Указывается сумма начисленной оплаты труда работникам учреждения, создающим условия для оказания услуг (выполнения работ), направленных на достижение определенных уставом учреждения целей деятельности этого учреждения, включая обслуживание зданий и оборудования."]
["<22> Указывается сумма начисленной оплаты труда работникам учреждения, занятым управлением (организацией) оказания услуг (выполнения работ), а также работникам учреждения, выполняющим административные функции, необходимые для обеспечения деятельности учреждения."]

{"sheet":"Табл 5-2 (ЦБ)","index":6,"n_rows":42,"n_cols":14,"rows_kept":42,"merged":[[0,0,5,0],[0,1,5,1],[0,2,0,13],[1,2,1,13],[2,2,2,7],[2,8,2,13],[3,2,5,2],[3,3,5,3],[3,4,3,5],[3,6,5,6],[3,7,5,7],[3,8,5,8],[3,9,5,9],[3,10,3,11],[3,12,5,12],[3,13,5,13],[4,4,4,5],[4,10,4,11],[18,0,22,0],[18,1,22,1],[18,2,18,13],[19,2,19,13],[20,2,20,7],[20,8,20,13],[21,2,22,2],[21,3,22,3],[21,4,21,5],[21,6,22,6],[21,7,22,7],[21,8,22,8],[21,9,22,9],[21,10,21,11],[21,12,22,12],[21,13,22,13],[36,1,37,3],[36,4,37,4],[36,6,37,8],[36,10,37,11],[38,1,38,3],[38,6,38,8],[38,10,38,11],[39,1,39,3],[39,6,39,8],[39,10,39,11],[40,1,40,3],[40,6,40,8],[40,10,40,11],[41,1,41,5]]}
["Группы персонала","Код строки","Аналитическое распределение оплаты труда сотрудников по источникам финансового обеспечения, руб <17>"]
[null,null,"в том числе:"]
[null,null,"по внутреннему совместительству (совмещению должностей)",{"$nulls":5},"по внешнему совместительству"]
[null,null,"за счет средств субсидии на выполнение муниципального задания","за счет средств субсидии на иные цели","за счет средств гранта в форме субсидии",null,"ОМС","за счет средств от приносящей доход деятельности","за счет средств субсидии на выполнение муниципального задания","за счет средств субсидии на иные цели","за счет средств гранта в форме субсидии",null,"ОМС","за счет средств от приносящей доход деятельности"]
[{"$nulls":4},"в том числе:",{"$nulls":5},"в том числе:"]
[{"$nulls":4},"из федерального бюджета","из бюджета субъекта Российской Федерации и местного бюджета",{"$nulls":4},"из федерального бюджета","из бюджета субъекта Российской Федерации и местного бюджета"]
[1,2,17,18,19,20,21,22,23,24,25,26,27,28]
["Основной персонал, всего",1000]
["из них: <13>",1100]
[]
["Вспомогательный персонал, всего",2000]
["из них: <13>",2100]
[]
["Административно-управленческий персонал, всего",3000]
["из них: <13>",3001]
[]
["Итого",9000]
[]
["Группы персонала","Код строки","Аналитическое распределение оплаты труда сотрудников по источникам финансового обеспечения, руб <17>"]
[null,null,"в том числе:"]
[null,null,"по договорам гражданско-правового характера с сотрудниками учреждения",{"$nulls":5},"по договорам гражданско-правового характера с физическими лицами, не являющимися сотрудниками учреждения"]
[null,null,"за счет средств субсидии на выполнение муниципального задания","за счет средств субсидии на иные цели","за счет средств гранта в форме субсидии, в том числе:",null,"ОМС","за счет средств от приносящей доход деятельности","за счет средств субсидии на выполнение муниципального задания","за счет средств субсидии на иные цели","за счет средств гранта в форме субсидии, в том числе:",null,"ОМС","за счет средств от приносящей доход деятельности"]
[{"$nulls":4},"из федерального бюджета","из бюджета субъекта Российской Федерации и местного бюджета",{"$nulls":4},"из федерального бюджета","из бюджета субъекта Российской Федерации и местного бюджета"]
[1,2,29,30,31,32,33,34,35,36,37,38,39,40]
["Основной персонал, всего",1000]
["из них: <13>",1100]
[]
["Вспомогательный персонал, всего",2000]
["из них: <13>",2100]
[]
["Административно-управленческий персонал, всего",3000]
["из них: <13>",3001]
[]
["Итого",9000]
[]
[]
["Руководитель","Директор",{"$nulls":8},"И.А.Сидорова"]
["(уполномоченное лицо) Учреждения"]
[null,"(должность)",{"$nulls":4},"(подпись)",{"$nulls":3},"(расшифровка подписи)"]
["Исполнитель"]
[null,"(должность)",{"$nulls":4},"(фамилия, инициалы)",{"$nulls":3},"(телефон)"]
["\"__\" __________ 20__ г."]

{"sheet":"Табл 6 (ЦБ)","index":7,"n_rows":38,"n_cols":7,"rows_kept":38,"merged":[[0,0,0,4],[3,0,3,4],[6,1,6,4],[7,1,7,4],[8,1,8,4],[12,0,13,0],[12,1,13,1],[12,2,12,4],[12,5,13,5],[12,6,13,6],[28,1,29,1],[28,2,29,2],[28,3,29,3],[28,4,29,4],[28,5,29,6],[30,5,30,6],[31,5,31,6],[32,5,32,6],[33,1,33,5],[36,0,36,6],[37,0,37,6]]}
["Сведения о счетах учреждения, открытых в кредитных организациях"]
[]
[{"$nulls":6},"КОДЫ"]
["на 1 января 2025 г.",{"$nulls":4},"Дата"]
[{"$nulls":5},"по Сводному реестру",86300402]
[{"$nulls":5},"ИНН",1001112534]
["Учреждение","Муниципальное общеобразовательное учреждение \"Средняя общеобразовательная школа № 44\"",{"$nulls":3},"КПП",102001001]
["Орган, осуществляющий функции и полномочия учредителя","Администрация Прионежского муниципального района",{"$nulls":3},"глава по БК","015"]
["Публично-правовое образование","Прионежский муниципальный район",{"$nulls":3},"по ОКТМО",86636410]
["Периодичность: годовая"]
[]
[]
["Номер счета в кредитной организации","Вид счета <23>","Реквизиты акта, в соответствии с которым открыт счет",null,null,"Остаток средств на счете на начало года <24>","Остаток средств на счете на конец отчетного периода <24>"]
[null,null,"вид акта","дата","номер"]
[1,2,3,4,5,6,7]
["Счета в кредитных организациях в валюте Российской Федерации","x","x","x","x","x","x"]
[]
[]
[]
["Всего",{"$nulls":4},{"v":0,"d":"0.00"},{"v":0,"d":"0.00"}]
["Счета в кредитных организациях в иностранной валюте","x","x","x","x","x","x"]
[]
[]
[]
["Всего",{"$nulls":4},{"v":0,"d":"0.00"},{"v":0,"d":"0.00"}]
["Итого","x","x","x","x",{"v":0,"d":"0.00"},{"v":0,"d":"0.00"}]
[]
[]
["Руководитель","Директор",{"$nulls":3},"И.А.Сидорова"]
["(уполномоченное лицо) Учреждения"]
[null,"(должность)",null,"(подпись)",null,"(расшифровка подписи)"]
["Исполнитель"]
[null,"(должность)",null,"(фамилия, инициалы)",null,"(телефон)"]
["\"__\" __________ 20__ г."]
[]
["--------------------------------"]
["<23> Указывается вид банковского счета, открытого в кредитной организации (например, номинальный счет, счет эскроу, публичный депозитный счет)."]
["<24> Показатели счетов в иностранной валюте указываются в рублевом эквиваленте."]

{"sheet":"Табл 7 (учрежд)","index":8,"n_rows":38,"n_cols":16,"rows_kept":38,"merged":[[0,0,0,13],[3,0,3,13],[6,1,6,13],[7,1,7,13],[8,1,8,13],[12,0,15,0],[12,1,15,1],[12,2,15,2],[12,3,15,3],[12,4,15,4],[12,5,12,6],[12,7,15,7],[12,8,12,11],[12,12,12,15],[13,5,15,5],[13,6,15,6],[13,8,15,8],[13,9,13,11],[13,12,15,12],[13,13,13,15],[14,9,14,10],[14,11,15,11],[14,13,15,13],[14,14,15,14],[14,15,15,15]]}
["Сведения о недвижимом имуществе, за исключением земельных участков, закрепленном на праве оперативного управления"]
[]
[{"$nulls":15},"КОДЫ"]
["на 1 января 2025 г.",{"$nulls":13},"Дата"]
[{"$nulls":14},"по Сводному реестру",86300402]
[{"$nulls":14},"ИНН",1001112534]
["Учреждение","Муниципальное общеобразовательное учреждение \"Средняя общеобразовательная школа № 44\"",{"$nulls":12},"КПП",102001001]
["Орган, осуществляющий функции и полномочия учредителя","Администрация Прионежского муниципального района",{"$nulls":12},"глава по БК","015"]
["Публично-правовое образование","Прионежский муниципальный район",{"$nulls":12},"по ОКТМО",86636410]
["Периодичность: годовая"]
[]
[]
["Наименование объекта","Адрес","Кадастровый номер","Код по ОКТМО","Год постройки","Единица измерения",null,"Код строки","Используется учреждением",{"$nulls":3},"Передано во временное пользование сторонним организациям (индивидуальным предпринимателям)"]
[{"$nulls":5},"наименование","код по ОКЕИ",null,"всего","в том числе:",null,null,"всего","в том числе:"]
[{"$nulls":9},"для осуществления основной деятельности",null,"для иных целей",null,"на основании договоров аренды","на основании договоров безвозмездного пользования","без оформления права пользования (с почасовой оплатой)"]
[{"$nulls":9},"в рамках муниципального задания","за плату сверх муниципального задания"]
[1,2,3,4,5,6,7,8,9,10,11,12,13,14,15,16]
["Площадные объекты <25>, всего","x","x","x","x","x","x",1000,{"$f":"I19","v":1961.8},{"$f":"J19","v":{"v":0,"d":"0.0"}},{"v":0,"d":"0.0"},{"v":0,"d":"0.0"},{"v":0,"d":"0.0"},{"v":0,"d":"0.0"},{"v":0,"d":"0.0"},{"v":0,"d":"0.0"}]
["в том числе:",{"$nulls":6},1001,{"$f":"I20","v":1961.8},{"$f":"J21","v":{"v":0,"d":"0.0"}},{"v":0,"d":"0.0"},{"v":0,"d":"0.0"},{"$f":"M20","v":{"v":0,"d":"0.0"}},{"v":0,"d":"0.0"},{"v":0,"d":"0.0"},{"v":0,"d":"0.0"}]
["Здание школы ","РК, Прионежский район, п.Чална-1","10:20:0000000:3662",86636410,null,"квадратный метр","055",null,{"$f":"J20","v":1961.8},1961.8,{"v":0,"d":"0.0"},{"v":0,"d":"0.0"},{"$f":"N20+O20+P20","v":{"v":0,"d":"0.0"}},{"v":0,"d":"0.0"},{"v":0,"d":"0.0"},{"v":0,"d":"0.0"}]
[]
["Линейные объекты <26>, всего","x","x","x","x","x",null,2000,{"v":0,"d":"0.0"},{"v":0,"d":"0.0"},{"v":0,"d":"0.0"},{"v":0,"d":"0.0"},{"v":0,"d":"0.0"},{"v":0,"d":"0.0"},{"v":0,"d":"0.0"},{"v":0,"d":"0.0"}]
["в том числе:",{"$nulls":6},2001]
[]
["Резервуары, емкости, иные аналогичные объекты, всего","x","x","x","x","x",null,3000,{"v":0,"d":"0.0"},{"v":0,"d":"0.0"},{"v":0,"d":"0.0"},{"v":0,"d":"0.0"},{"v":0,"d":"0.0"},{"v":0,"d":"0.0"},{"v":0,"d":"0.0"},{"v":0,"d":"0.0"}]
["в том числе:",{"$nulls":6},3001]
[]
["Скважины, иные аналогичные объекты, всего","x","x","x","x","x","x",4000,{"v":0,"d":"0.0"},{"v":0,"d":"0.0"},{"v":0,"d":"0.0"},{"v":0,"d":"0.0"},{"v":0,"d":"0.0"},{"v":0,"d":"0.0"},{"v":0,"d":"0.0"},{"v":0,"d":"0.0"}]
["в том числе:",{"$nulls":6},4001]
[]
["Иные объекты, включая точечные, всего","x","x","x","x","x","x",5000,{"v":0,"d":"0.0"},{"v":0,"d":"0.0"},{"v":0,"d":"0.0"},{"v":0,"d":"0.0"},{"v":0,"d":"0.0"},{"v":0,"d":"0.0"},{"v":0,"d":"0.0"},{"v":0,"d":"0.0"}]
["в том числе:",{"$nulls":6},5001]
[]
[{"$nulls":7},9000,{"$f":"I18+I22+I25+I28+I31","v":1961.8},{"v":0,"d":"0.0"},{"v":0,"d":"0.0"},{"v":0,"d":"0.0"},{"v":0,"d":"0.0"},{"v":0,"d":"0.0"},{"v":0,"d":"0.0"},{"v":0,"d":"0.0"}]
[]
["--------------------------------"]
["<25> Указываются здания, строения, сооружения и иные аналогичные объекты."]
["<26> Указываются линии электропередачи, линии связи (в том числе линейно-кабельные сооружения), трубопроводы, автомобильные дороги, железнодорожные линии и другие подобные сооружения."]

{"sheet":"Табл 7-1 (ЦБ)","index":9,"n_rows":31,"n_cols":16,"rows_kept":31,"merged":[[0,0,4,0],[0,1,4,1],[0,2,0,5],[0,6,0,15],[1,2,4,2],[1,3,1,5],[1,6,4,6],[1,7,1,15],[2,3,4,3],[2,4,2,5],[2,7,2,9],[2,10,2,12],[2,13,2,15],[3,4,4,4],[3,5,4,5],[3,7,4,7],[3,8,3,9],[3,10,4,10],[3,11,3,12],[3,13,4,13],[3,14,3,15],[25,1,26,2],[25,4,26,6],[25,8,26,9],[27,1,27,2],[27,4,27,6],[27,8,27,9],[28,1,28,2],[28,4,28,6],[28,8,28,9],[29,1,29,2],[29,4,29,6],[29,8,29,9],[30,1,30,5]]}
["Наименование объекта","Код строки","Не используется",{"$nulls":3},"Фактические расходы на содержание объекта недвижимого имущества (руб в год)"]
[null,null,"всего","из них:",null,null,"всего","из них:"]
[{"$nulls":3},"проводится капитальный ремонт и/или реконструкция","в связи с аварийным состоянием",null,null,"коммунальные услуги",null,null,"услуги по содержанию имущества",null,null,"налог на имущество"]
[{"$nulls":4},"требуется ремонт","ожидает списания",null,"всего","из них:",null,"всего","из них:",null,"всего","из них:"]
[{"$nulls":8},"возмещается пользователями имущества","по неиспользуемому имуществу",null,"возмещается пользователями имущества","по неиспользуемому имуществу",null,"возмещается пользователями имущества","по неиспользуемому имуществу"]
[1,8,17,18,19,20,21,22,23,24,25,26,27,28,29,30]
["Площадные объекты <25>, всего",1000,{"$f":"C8","v":0},{"$f":"D8","v":0},0,0,{"$f":"H7+K7+N7","v":{"v":3160861.4699999997,"d":"3,160,861.47"}},{"v":1950081.63,"d":"1,950,081.63"},{"v":0,"d":"0.00"},{"v":0,"d":"0.00"},{"v":1201153.84,"d":"1,201,153.84"},{"v":0,"d":"0.00"},{"v":0,"d":"0.00"},{"v":9626,"d":"9,626.00"},{"v":0,"d":"0.00"},{"v":0,"d":"0.00"}]
["в том числе:",1001,{"$f":"C10","v":0},0,0,0,{"v":3160861.4699999997,"d":"3,160,861.47"},{"$f":"H9","v":{"v":1950081.63,"d":"1,950,081.63"}},{"v":0,"d":"0.00"},{"v":0,"d":"0.00"},{"v":1201153.84,"d":"1,201,153.84"},{"v":0,"d":"0.00"},{"v":0,"d":"0.00"},{"v":9626,"d":"9,626.00"},{"v":0,"d":"0.00"},{"v":0,"d":"0.00"}]
["Здание школы ",null,0,0,null,null,{"$f":"H9+K9+N9","v":{"v":3160861.4699999997,"d":"3,160,861.47"}},{"v":1950081.63,"d":"1,950,081.63"},{"v":0,"d":"0.00"},{"v":0,"d":"0.00"},{"v":1201153.84,"d":"1,201,153.84"},{"v":0,"d":"0.00"},{"v":0,"d":"0.00"},{"v":9626,"d":"9,626.00"},{"v":0,"d":"0.00"},{"v":0,"d":"0.00"}]
[]
["Линейные объекты <26>, всего",2000,0,0,0,0,{"v":0,"d":"0.00"},{"v":0,"d":"0.00"},{"v":0,"d":"0.00"},{"v":0,"d":"0.00"},{"v":0,"d":"0.00"},{"v":0,"d":"0.00"},{"v":0,"d":"0.00"},{"v":0,"d":"0.00"},{"v":0,"d":"0.00"},{"v":0,"d":"0.00"}]
["в том числе:",2001]
[]
["Резервуары, емкости, иные аналогичные объекты, всего",3000,0,0,0,0,{"v":0,"d":"0.00"},{"v":0,"d":"0.00"},{"v":0,"d":"0.00"},{"v":0,"d":"0.00"},{"v":0,"d":"0.00"},{"v":0,"d":"0.00"},{"v":0,"d":"0.00"},{"v":0,"d":"0.00"},{"v":0,"d":"0.00"},{"v":0,"d":"0.00"}]
["в том числе:",3001]
[]
["Скважины, иные аналогичные объекты, всего",4000,0,0,0,0,{"v":0,"d":"0.00"},{"v":0,"d":"0.00"},{"v":0,"d":"0.00"},{"v":0,"d":"0.00"},{"v":0,"d":"0.00"},{"v":0,"d":"0.00"},{"v":0,"d":"0.00"},{"v":0,"d":"0.00"},{"v":0,"d":"0.00"},{"v":0,"d":"0.00"}]
["в том числе:",4001]
[]
["Иные объекты, включая точечные, всего",5000,0,0,0,0,{"v":0,"d":"0.00"},{"v":0,"d":"0.00"},{"v":0,"d":"0.00"},{"v":0,"d":"0.00"},{"v":0,"d":"0.00"},{"v":0,"d":"0.00"},{"v":0,"d":"0.00"},{"v":0,"d":"0.00"},{"v":0,"d":"0.00"},{"v":0,"d":"0.00"}]
["в том числе:",5001]
[]
["Итого",9000,{"$f":"C7+C11+C14+C17+C20","v":0},0,0,0,{"v":3160861.4699999997,"d":"3,160,861.47"},{"v":1950081.63,"d":"1,950,081.63"},{"v":0,"d":"0.00"},{"v":0,"d":"0.00"},{"v":1201153.84,"d":"1,201,153.84"},{"v":0,"d":"0.00"},{"v":0,"d":"0.00"},{"v":9626,"d":"9,626.00"},{"v":0,"d":"0.00"},{"v":0,"d":"0.00"}]
[]
[]
["Руководитель","Директор",{"$nulls":6},"И.А.Сидорова"]
["(уполномоченное лицо) Учреждения"]
[null,"(должность)",null,null,"(подпись)",{"$nulls":3},"(расшифровка подписи)"]
["Исполнитель"]
[null,"(должность)",null,null,"(фамилия, инициалы)",{"$nulls":3},"(телефон)"]
["\"__\" __________ 20__ г."]

{"sheet":"Табл 8 (ЦБ)","index":10,"n_rows":30,"n_cols":22,"rows_kept":30,"merged":[[0,0,0,19],[3,0,3,19],[6,1,6,19],[7,1,7,19],[8,1,8,19],[12,0,16,0],[12,1,16,1],[12,2,16,2],[12,3,16,3],[12,4,13,5],[12,6,16,6],[12,7,16,7],[12,8,13,11],[12,12,16,12],[12,13,13,17],[12,18,12,21],[13,18,13,21],[14,4,16,4],[14,5,16,5],[14,8,16,8],[14,9,14,11],[14,13,16,13],[14,14,14,17],[14,18,16,18],[14,19,14,21],[15,9,15,10],[15,11,16,11],[15,14,15,16],[15,17,16,17],[15,19,15,20],[15,21,16,21],[24,1,25,2],[24,4,25,6],[24,8,25,10],[26,1,26,2],[26,4,26,6],[26,8,26,10],[27,1,27,2],[27,4,27,6],[27,8,27,10],[28,1,28,2],[28,4,28,6],[28,8,28,10],[29,1,29,5]]}
["Сведения о земельных участках, предоставленных на праве постоянного (бессрочного) пользования"]
[]
[{"$nulls":21},"КОДЫ"]
["на 1 января 2025 г.",{"$nulls":19},"Дата"]
[{"$nulls":20},"по Сводному реестру",86300402]
[{"$nulls":20},"ИНН",1001112534]
["Учреждение","Муниципальное общеобразовательное учреждение \"Средняя общеобразовательная школа № 44\"",{"$nulls":18},"КПП",102001001]
["Орган, осуществляющий функции и полномочия учредителя","Администрация Прионежского муниципального района",{"$nulls":18},"глава по БК","015"]
["Публично-правовое образование","Прионежский муниципальный район",{"$nulls":18},"по ОКТМО",86636410]
["Периодичность: годовая"]
[]
[]
["Наименование показателя","Адрес","Код по ОКТМО","Кадастровый номер","Единица измерения",null,"Код строки","Всего","Используется учреждением",{"$nulls":3},"Справочно: используется по соглашениям об установлении сервитута","Не используется учреждением",{"$nulls":4},"Фактические расходы на содержание земельного участка"]
[{"$nulls":18},"(руб в год)"]
[{"$nulls":4},"наименование","код по ОКЕИ",null,null,"всего","в том числе:",{"$nulls":3},"всего","в том числе:",{"$nulls":3},"всего","в том числе:"]
[{"$nulls":9},"для осуществления основной деятельности",null,"для иных целей",null,null,"передано во временное пользование сторонним организациям",null,null,"по иным причинам",null,"эксплуатационные расходы",null,"налог на землю"]
[{"$nulls":9},"в рамках муниципального задания","за плату сверх муниципального задания",{"$nulls":3},"на основании договоров аренды","на основании договоров безвозмездного пользования","без оформления права пользования",null,null,"всего","из них возмещается пользователями имущества"]
[1,2,3,4,5,6,7,8,9,10,11,12,13,14,15,16,17,18,19,20,21,22]
["Земельный участок ","РК, Прионежский район, п.Чална-1, з/у 29",86636410,"10:20:0000000:10229","квадратный метр","055",null,"11 992 кв.м","11 992 кв.м","11 992 кв.м",0,0,0,0,0,0,0,0,{"$f":"T19+V19","v":{"v":27461,"d":"27,461.00"}},{"v":0,"d":"0.00"},{"v":0,"d":"0.00"},{"v":27461,"d":"27,461.00"}]
[]
[]
[{"$nulls":5},"Итого","х","11 992 кв.м","11 992 кв.м","11 992 кв.м","х","х","х","х","х","х","х","х",{"$f":"S19","v":{"v":27461,"d":"27,461.00"}},{"$f":"T19","v":{"v":0,"d":"0.00"}},{"$f":"U19","v":{"v":0,"d":"0.00"}},{"v":27461,"d":"27,461.00"}]
[]
[]
["Руководитель","Директор",{"$nulls":6},"И.А.Сидорова"]
["(уполномоченное лицо) Учреждения"]
[null,"(должность)",null,null,"(подпись)",{"$nulls":3},"(расшифровка подписи)"]
["Исполнитель"]
[null,"(должность)",null,null,"(фамилия, инициалы)",{"$nulls":3},"(телефон)"]
["\"__\" __________ 20__ г."]

{"sheet":"Табл 9 (учр+цб)","index":11,"n_rows":31,"n_cols":17,"rows_kept":31,"merged":[[0,0,0,14],[3,0,3,14],[6,1,6,14],[7,1,7,14],[8,1,8,14],[11,0,11,16],[12,0,13,0],[12,1,13,1],[12,2,12,3],[12,4,13,4],[12,5,13,5],[12,6,12,8],[12,9,12,10],[12,11,12,12],[12,13,13,13],[12,14,12,15],[12,16,13,16]]}
["Сведения о недвижимом имуществе, используемом по договору аренды"]
[]
[{"$nulls":16},"КОДЫ"]
["на 1 января 2025 г.",{"$nulls":14},"Дата"]
[{"$nulls":15},"по Сводному реестру",86300402]
[{"$nulls":15},"ИНН",1001112534]
["Учреждение","Муниципальное общеобразовательное учреждение \"Средняя общеобразовательная школа № 44\"",{"$nulls":13},"КПП",102001001]
["Орган, осуществляющий функции и полномочия учредителя","Администрация Прионежского муниципального района",{"$nulls":13},"глава по БК","015"]
["Публично-правовое образование","Прионежский муниципальный район",{"$nulls":13},"по ОКТМО",86636410]
["Периодичность: годовая"]
[]
["Раздел 1. Сведения о недвижимом имуществе, используемом на праве аренды с помесячной оплатой"]
["Наименование объекта","Адрес","Единица измерения",null,"Код строки","Количество арендуемого имущества","Арендодатель (ссудодатель)",null,null,"Срок пользования",null,"Арендная плата",null,"Фактические расходы на содержание арендованного имущества (руб/год)","Направление использования арендованного имущества",null,"Обоснование заключения договора аренды"]
[null,null,"наименование","код по ОКЕИ",null,null,"наименование","ИНН","код по КИСЭ","начала","окончания","за единицу меры (руб/мес)","за объект (руб/год)",null,"для осуществления основной деятельности <27>","для осуществления иной деятельности <28>"]
[1,2,3,4,5,6,7,8,9,10,11,12,13,14,15,16,17]
["Площадные объекты <25>, всего","x","x","x",1000,0,"х","х","х","х","х","х","х",0,"х","х","х"]
["в том числе:",{"$nulls":3},1001]
[]
["Линейные объекты <26>, всего","x","x","x",2000,0,"х","х","х","х","х","х","х",0,"х","х","х"]
["в том числе:",{"$nulls":3},2001]
[]
["Резервуары, емкости, иные аналогичные объекты, всего","x","x","x",3000,0,"х","х","х","х","х","х","х",0,"х","х","х"]
["в том числе:",{"$nulls":3},3001]
[]
["Скважины, иные аналогичные объекты, всего","x","x","x",4000,0,"х","х","х","х","х","х","х",0,"х","х","х"]
["в том числе:",{"$nulls":3},4001]
[]
["Иные объекты, включая точечные, всего","x","x","x",5000]
["в том числе:",{"$nulls":3},5001,0,"х","х","х","х","х","х","х",0,"х","х","х"]
[]
[{"$nulls":3},"Итого",9000,0,"х","х","х","х","х","х",{"v":0,"d":"0.00"},{"v":0,"d":"0.00"},"х","х","х"]

{"sheet":"Табл 9-1","index":12,"n_rows":32,"n_cols":17,"rows_kept":32,"merged":[[0,0,0,16],[1,0,2,0],[1,1,2,1],[1,2,1,3],[1,4,2,4],[1,5,2,5],[1,6,1,8],[1,9,2,9],[1,10,1,12],[1,13,2,13],[1,14,1,15],[1,16,2,16],[22,1,23,2],[22,4,23,6],[23,8,23,10],[24,1,24,2],[24,4,24,6],[24,8,24,10],[25,1,25,2],[25,4,25,6],[25,8,25,10],[26,1,26,2],[26,4,26,6],[26,8,26,10],[27,1,27,5],[30,0,30,16],[31,0,31,16]]}
["Раздел 2. Сведения о недвижимом имуществе, используемом на праве аренды с почасовой оплатой"]
["Наименование объекта","Адрес","Единица измерения",null,"Код строки","Количество арендуемого имущества","Арендодатель (ссудодатель)",null,null,"Длительность использования (час)","Арендная плата",null,null,"Фактические расходы на содержание объекта недвижимого имущества (руб/год)","Направление использования объекта недвижимого имущества",null,"Обоснование заключения договора аренды"]
[null,null,"наименование","код по ОКЕИ",null,null,"наименование","ИНН","код по КИСЭ",null,"за единицу меры (руб/час)","за объект (руб/час)","всего за год (руб)",null,"для осуществления основной деятельности <27>","для осуществления иной деятельности <28>"]
[1,2,4,5,6,7,8,9,10,11,12,13,14,15,16,17,18]
["Площадные объекты <25>, всего","x","x","x",1000,0,"х","х","х","х","х","х","х",0,"х","х","х"]
["в том числе:",{"$nulls":3},1001]
[]
["Линейные объекты <26>, всего","x","x","x",2000,0,"х","х","х","х","х","х","х",0,"х","х","х"]
["в том числе:",{"$nulls":3},2001]
[]
["Резервуары, емкости, иные аналогичные объекты, всего","x","x","x",3000,0,"х","х","х","х","х","х","х",0,"х","х","х"]
["в том числе:",{"$nulls":3},3001]
[]
["Скважины, иные аналогичные объекты, всего","x","x","x",4000,0,"х","х","х","х","х","х","х",0,"х","х","х"]
["в том числе:",{"$nulls":3},4001]
[]
["Иные объекты, включая точечные, всего","x","x","x",5000,0,"х","х","х","х","х","х","х",0,"х","х","х"]
["в том числе:",{"$nulls":3},5001]
[]
[{"$nulls":3},"Итого",9000,"х","х","х","х","х","х","х","х","х","х","х","х"]
[]
[]
["Руководитель","Директор"]
["(уполномоченное лицо) Учреждения",{"$nulls":7},"И.А.Сидорова"]
[null,"(должность)",null,null,"(подпись)",{"$nulls":3},"(расшифровка подписи)"]
["Исполнитель"]
[null,"(должность)",null,null,"(фамилия, инициалы)",{"$nulls":3},"(телефон)"]
["\"__\" __________ 20__ г."]
[]
["--------------------------------"]
["<27> Указывается направление использования объекта недвижимого имущества \"1\" - для осуществления основной деятельности в рамках муниципального задания, \"2\" - для осуществления основной деятельности за плату сверх муниципального задания."]
["<28> Указывается направление использования объекта недвижимого имущества \"3\" - проведение концертно-зрелищных мероприятий и иных культурно-массовых мероприятий, \"4\" - проведение спортивных мероприятий, \"5\" - проведение конференций, семинаров, выставок, переговоров, встреч, совещаний, съездов, конгрессов, \"6\" - для иных мероприятий."]

{"sheet":"Табл 10","index":13,"n_rows":39,"n_cols":15,"rows_kept":39,"merged":[[0,0,0,12],[3,0,3,12],[6,1,6,12],[7,1,7,12],[8,1,8,12],[12,0,13,0],[12,1,13,1],[12,2,12,3],[12,4,13,4],[12,5,13,5],[12,6,12,8],[12,9,12,10],[12,11,13,11],[12,12,12,13],[12,14,13,14],[33,2,34,5],[33,7,34,10],[33,12,34,13],[35,2,35,5],[35,7,35,10],[35,12,35,13],[36,2,36,5],[36,7,36,10],[36,12,36,13],[37,2,37,5],[37,7,37,10],[37,12,37,13],[38,1,38,5]]}
["Сведения о недвижимом имуществе, используемом по договору безвозмездного пользования (договору ссуды)"]
[]
[{"$nulls":14},"КОДЫ"]
["на 1 января 2025 г.",{"$nulls":12},"Дата"]
[{"$nulls":13},"по Сводному реестру",86300402]
[{"$nulls":13},"ИНН",1001112534]
["Учреждение","Муниципальное общеобразовательное учреждение \"Средняя общеобразовательная школа № 44\"",{"$nulls":11},"КПП",102001001]
["Орган, осуществляющий функции и полномочия учредителя","Администрация Прионежского муниципального района",{"$nulls":11},"глава по БК","015"]
["Публично-правовое образование","Прионежский муниципальный район",{"$nulls":11},"по ОКТМО",86636410]
["Периодичность: годовая"]
[]
[]
["Наименование объекта","Адрес","Единица измерения",null,"Код строки","Количество имущества","Ссудодатель",null,null,"Срок пользования",null,"Фактические расходы на содержание объекта недвижимого имущества (руб/год)","Направление использования объекта недвижимого имущества",null,"Обоснование заключения договора ссуды"]
[null,null,"наименование","код по ОКЕИ",null,null,"наименование","ИНН","код по КИСЭ","начала","окончания",null,"для осуществления основной деятельности <27>","для осуществления иной деятельности <28>"]
[1,2,3,4,5,6,7,8,9,10,11,12,13,14,15]
["Площадные объекты <25>, всего",{"$nulls":3},1000,0,"х","х","х","х","х",0,"х","х","х"]
["в том числе:",{"$nulls":3},1001]
[]
["Линейные объекты <26>, всего",{"$nulls":3},2000,0,"х","х","х","х","х",0,"х","х","х"]
["в том числе:",{"$nulls":3},2001]
[]
["Резервуары, емкости, иные аналогичные объекты, всего",{"$nulls":3},3000,0,"х","х","х","х","х",0,"х","х","х"]
["в том числе:",{"$nulls":3},3001]
[]
["Скважины, иные аналогичные объекты, всего",{"$nulls":3},4000,0,"х","х","х","х","х",0,"х","х","х"]
["в том числе:",{"$nulls":3},4001]
[]
["Иные объекты, включая точечные, всего",{"$nulls":3},5000,0,"х","х","х","х","х",0,"х","х","х"]
["в том числе:",{"$nulls":3},5001]
[]
[{"$nulls":3},"Всего:",9000,0,"х","х","х","х","х",0,"х","х","х"]
[]
[]
["Руководитель",null,"Директор",{"$nulls":9},"И.А.Сидорова"]
["(уполномоченное лицо) Учреждения"]
[null,null,"(должность)",{"$nulls":4},"(подпись)",{"$nulls":4},"(расшифровка подписи)"]
["Исполнитель"]
[null,null,"(должность)",{"$nulls":4},"(фамилия, инициалы)",{"$nulls":4},"(телефон)"]
["\"__\" __________ 20__ г."]

{"sheet":"Табл 11","index":14,"n_rows":47,"n_cols":10,"rows_kept":47,"merged":[[0,0,0,7],[3,0,3,7],[6,1,6,7],[7,1,7,7],[8,1,8,7],[11,0,11,9],[12,0,16,0],[12,1,16,1],[12,2,12,9],[13,2,16,2],[13,3,13,9],[14,3,16,3],[14,4,14,6],[14,7,14,9],[15,4,16,4],[15,5,15,6],[15,7,16,7],[15,8,15,9],[19,1,20,1],[19,2,20,2],[19,3,20,3],[19,4,20,4],[19,5,20,5],[19,6,20,6],[19,7,20,7],[19,8,20,8],[19,9,20,9],[21,1,22,1],[21,2,22,2],[21,3,22,3],[21,4,22,4],[21,5,22,5],[21,6,22,6],[21,7,22,7],[21,8,22,8],[21,9,22,9],[26,1,27,1],[26,2,27,2],[26,3,27,3],[26,4,27,4],[26,5,27,5],[26,6,27,6],[26,7,27,7],[26,8,27,8],[26,9,27,9],[28,1,29,1],[28,2,29,2],[28,3,29,3],[28,4,29,4],[28,5,29,5],[28,6,29,6],[28,7,29,7],[28,8,29,8],[28,9,29,9],[33,1,34,1],[33,2,34,2],[33,3,34,3],[33,4,34,4],[33,5,34,5],[33,6,34,6],[33,7,34,7],[33,8,34,8],[33,9,34,9],[35,1,36,1],[35,2,36,2],[35,3,36,3],[35,4,36,4],[35,5,36,5],[35,6,36,6],[35,7,36,7],[35,8,36,8],[35,9,36,9],[40,1,41,1],[40,2,41,2],[40,3,41,3],[40,4,41,4],[40,5,41,5],[40,6,41,6],[40,7,41,7],[40,8,41,8],[40,9,41,9],[42,1,43,1],[42,2,43,2],[42,3,43,3],[42,4,43,4],[42,5,43,5],[42,6,43,6],[42,7,43,7],[42,8,43,8],[42,9,43,9]]}
["Сведения об особо ценном движимом имуществе (за исключением транспортных средств)"]
[]
[{"$nulls":9},"КОДЫ"]
["на 1 января 2025 г.",{"$nulls":7},"Дата"]
[{"$nulls":8},"по Сводному реестру",86300402]
[{"$nulls":8},"ИНН",1001112534]
["Учреждение","Муниципальное общеобразовательное учреждение \"Средняя общеобразовательная школа № 44\"",{"$nulls":6},"КПП",102001001]
["Орган, осуществляющий функции и полномочия учредителя","Администрация Прионежского муниципального района",{"$nulls":6},"глава по БК","015"]
["Публично-правовое образование","Прионежский муниципальный район",{"$nulls":6},"по ОКТМО",86636410]
["Периодичность: годовая"]
[]
["Раздел 1. Сведения о наличии, состоянии и использовании особо ценного движимого имущества"]
["Наименование показателя (группа основных средств)","Код строки","Наличие движимого имущества на конец отчетного периода"]
[null,null,"всего","в том числе:"]
[{"$nulls":3},"используется учреждением","передано в пользование",null,null,"не используется"]
[{"$nulls":4},"всего","в том числе:",null,"требует ремонта","физически и морально изношено, ожидает согласования, списания"]
[{"$nulls":5},"в аренду","безвозмездно",null,"всего","из них требует замены"]
[1,2,3,4,5,6,7,8,9,10]
["Нежилые помещения, здания и сооружения, не отнесенные к недвижимому имуществу",1000,{"v":0,"d":"0.00"},{"v":0,"d":"0.00"},{"v":0,"d":"0.00"},{"v":0,"d":"0.00"},{"v":0,"d":"0.00"},{"v":0,"d":"0.00"},{"v":0,"d":"0.00"},{"v":0,"d":"0.00"}]
["в том числе:",1100]
["для основной деятельности"]
["из них:",1110]
["для оказания услуг (выполнения работ) в рамках утвержденного муниципального задания"]
[]
["для иной деятельности",1200]
["Машины и оборудование",2000,{"v":0,"d":"0.00"},{"v":0,"d":"0.00"},{"v":0,"d":"0.00"},{"v":0,"d":"0.00"},{"v":0,"d":"0.00"},{"v":0,"d":"0.00"},{"v":0,"d":"0.00"},{"v":0,"d":"0.00"}]
["в том числе:",2100]
["для основной деятельности"]
["из них:",2110]
["для оказания услуг (выполнения работ) в рамках утвержденного муниципального задания"]
[]
["для иной деятельности",2200]
["Хозяйственный и производственный инвентарь, всего",3000,{"v":0,"d":"0.00"},{"v":0,"d":"0.00"},{"v":0,"d":"0.00"},{"v":0,"d":"0.00"},{"v":0,"d":"0.00"},{"v":0,"d":"0.00"},{"v":0,"d":"0.00"},{"v":0,"d":"0.00"}]
["в том числе:",3100]
["для основной деятельности"]
["из них:",3110]
["для оказания услуг (выполнения работ) в рамках утвержденного муниципального задания"]
[]
["для иной деятельности",3200]
["Прочие основные средства, всего",4000,{"v":0,"d":"0.00"},{"v":0,"d":"0.00"},{"v":0,"d":"0.00"},{"v":0,"d":"0.00"},{"v":0,"d":"0.00"},{"v":0,"d":"0.00"},{"v":0,"d":"0.00"},{"v":0,"d":"0.00"}]
["в том числе:",4100]
["для основной деятельности"]
["из них:",4110]
["для оказания услуг (выполнения работ) в рамках утвержденного муниципального задания"]
[]
["для иной деятельности",4200]
["Итого",9000,{"v":0,"d":"0.00"},{"v":0,"d":"0.00"},{"v":0,"d":"0.00"},{"v":0,"d":"0.00"},{"v":0,"d":"0.00"},{"v":0,"d":"0.00"},{"v":0,"d":"0.00"},{"v":0,"d":"0.00"}]

{"sheet":"Табл 11-1","index":15,"n_rows":36,"n_cols":14,"rows_kept":36,"merged":[[0,0,2,0],[0,1,2,1],[0,2,0,13],[1,2,1,3],[1,4,1,5],[1,6,1,7],[1,8,1,9],[1,10,1,11],[1,12,1,13],[5,1,6,1],[5,2,6,2],[5,3,6,3],[5,4,6,4],[5,5,6,5],[5,6,6,6],[5,7,6,7],[5,8,6,8],[5,9,6,9],[5,10,6,10],[5,11,6,11],[5,12,6,12],[5,13,6,13],[7,1,8,1],[7,2,8,2],[7,3,8,3],[7,4,8,4],[7,5,8,5],[7,6,8,6],[7,7,8,7],[7,8,8,8],[7,9,8,9],[7,10,8,10],[7,11,8,11],[7,12,8,12],[7,13,8,13],[12,1,13,1],[12,2,13,2],[12,3,13,3],[12,4,13,4],[12,5,13,5],[12,6,13,6],[12,7,13,7],[12,8,13,8],[12,9,13,9],[12,10,13,10],[12,11,13,11],[12,12,13,12],[12,13,13,13],[14,1,15,1],[14,2,15,2],[14,3,15,3],[14,4,15,4],[14,5,15,5],[14,6,15,6],[14,7,15,7],[14,8,15,8],[14,9,15,9],[14,10,15,10],[14,11,15,11],[14,12,15,12],[14,13,15,13],[19,1,20,1],[19,2,20,2],[19,3,20,3],[19,4,20,4],[19,5,20,5],[19,6,20,6],[19,7,20,7],[19,8,20,8],[19,9,20,9],[19,10,20,10],[19,11,20,11],[19,12,20,12],[19,13,20,13],[21,1,22,1],[21,2,22,2],[21,3,22,3],[21,4,22,4],[21,5,22,5],[21,6,22,6],[21,7,22,7],[21,8,22,8],[21,9,22,9],[21,10,22,10],[21,11,22,11],[21,12,22,12],[21,13,22,13],[26,1,27,1],[26,2,27,2],[26,3,27,3],[26,4,27,4],[26,5,27,5],[26,6,27,6],[26,7,27,7],[26,8,27,8],[26,9,27,9],[26,10,27,10],[26,11,27,11],[26,12,27,12],[26,13,27,13],[28,1,29,1],[28,2,29,2],[28,3,29,3],[28,4,29,4],[28,5,29,5],[28,6,29,6],[28,7,29,7],[28,8,29,8],[28,9,29,9],[28,10,29,10],[28,11,29,11],[28,12,29,12],[28,13,29,13],[35,0,35,13]]}
["Наименование показателя (группа основных средств)","Код строки","Фактический срок использования <29>"]
[null,null,"от 121 месяца и более",null,"от 85 до 120 месяцев",null,"от 61 до 84 месяцев",null,"от 37 до 60 месяцев",null,"от 13 до 36 месяцев",null,"менее 12 месяцев"]
[null,null,"количество, ед","балансовая стоимость, руб","количество, ед","балансовая стоимость, руб","количество, ед","балансовая стоимость, руб","количество, ед","балансовая стоимость, руб","количество, ед","балансовая стоимость, руб","количество, ед","балансовая стоимость, руб"]
[1,2,11,12,13,14,15,16,17,18,19,20,21,22]
["Нежилые помещения, здания и сооружения, не отнесенные к недвижимому имуществу",1000,0,{"v":0,"d":"0.00"},0,{"v":0,"d":"0.00"},0,{"v":0,"d":"0.00"},0,{"v":0,"d":"0.00"},0,{"v":0,"d":"0.00"},0,{"v":0,"d":"0.00"}]
["в том числе:",1100]
["для основной деятельности"]
["из них:",1110]
["для оказания услуг (выполнения работ) в рамках утвержденного муниципального задания"]
[]
["для иной деятельности",1200]
["Машины и оборудование",2000,0,{"v":0,"d":"0.00"},0,{"v":0,"d":"0.00"},0,{"v":0,"d":"0.00"},0,{"v":0,"d":"0.00"},0,{"v":0,"d":"0.00"},0,{"v":0,"d":"0.00"}]
["в том числе:",2100]
["для основной деятельности"]
["из них:",2110]
["для оказания услуг (выполнения работ) в рамках утвержденного муниципального задания"]
[]
["для иной деятельности",2200]
["Хозяйственный и производственный инвентарь, всего",3000,0,{"v":0,"d":"0.00"},0,{"v":0,"d":"0.00"},0,{"v":0,"d":"0.00"},0,{"v":0,"d":"0.00"},0,{"v":0,"d":"0.00"},0,{"v":0,"d":"0.00"}]
["в том числе:",3100]
["для основной деятельности"]
["из них:",3110]
["для оказания услуг (выполнения работ) в рамках утвержденного муниципального задания"]
[]
["для иной деятельности",3200]
["Прочие основные средства, всего",4000,0,{"v":0,"d":"0.00"},0,{"v":0,"d":"0.00"},0,{"v":0,"d":"0.00"},0,{"v":0,"d":"0.00"},0,{"v":0,"d":"0.00"},0,{"v":0,"d":"0.00"}]
["в том числе:",4100]
["для основной деятельности"]
["из них:",4110]
["для оказания услуг (выполнения работ) в рамках утвержденного муниципального задания"]
[]
["для иной деятельности",4200]
["Итого",9000,0,{"v":0,"d":"0.00"},0,{"v":0,"d":"0.00"},0,{"v":0,"d":"0.00"},0,{"v":0,"d":"0.00"},0,{"v":0,"d":"0.00"},0,{"v":0,"d":"0.00"}]
[]
["--------------------------------"]
["<29> Срок использования имущества считается начиная с 1-го числа месяца, следующего за месяцем принятия его к бухгалтерскому учету."]

{"sheet":"Табл 11-2","index":16,"n_rows":32,"n_cols":13,"rows_kept":32,"merged":[[0,0,1,0],[0,1,1,1],[0,2,0,12],[4,1,5,1],[4,2,5,2],[4,3,5,3],[4,4,5,4],[4,5,5,5],[4,6,5,6],[4,7,5,7],[4,8,5,8],[4,9,5,9],[4,10,5,10],[4,11,5,11],[4,12,5,12],[6,1,7,1],[6,2,7,2],[6,3,7,3],[6,4,7,4],[6,5,7,5],[6,6,7,6],[6,7,7,7],[6,8,7,8],[6,9,7,9],[6,10,7,10],[6,11,7,11],[6,12,7,12],[11,1,12,1],[11,2,12,2],[11,3,12,3],[11,4,12,4],[11,5,12,5],[11,6,12,6],[11,7,12,7],[11,8,12,8],[11,9,12,9],[11,10,12,10],[11,11,12,11],[11,12,12,12],[13,1,14,1],[13,2,14,2],[13,3,14,3],[13,4,14,4],[13,5,14,5],[13,6,14,6],[13,7,14,7],[13,8,14,8],[13,9,14,9],[13,10,14,10],[13,11,14,11],[13,12,14,12],[18,1,19,1],[18,2,19,2],[18,3,19,3],[18,4,19,4],[18,5,19,5],[18,6,19,6],[18,7,19,7],[18,8,19,8],[18,9,19,9],[18,10,19,10],[18,11,19,11],[18,12,19,12],[20,1,21,1],[20,2,21,2],[20,3,21,3],[20,4,21,4],[20,5,21,5],[20,6,21,6],[20,7,21,7],[20,8,21,8],[20,9,21,9],[20,10,21,10],[20,11,21,11],[20,12,21,12],[25,1,26,1],[25,2,26,2],[25,3,26,3],[25,4,26,4],[25,5,26,5],[25,6,26,6],[25,7,26,7],[25,8,26,8],[25,9,26,9],[25,10,26,10],[25,11,26,11],[25,12,26,12],[27,1,28,1],[27,2,28,2],[27,3,28,3],[27,4,28,4],[27,5,28,5],[27,6,28,6],[27,7,28,7],[27,8,28,8],[27,9,28,9],[27,10,28,10],[27,11,28,11],[27,12,28,12]]}
["Наименование показателя (группа основных средств)","Код строки","Остаточная стоимость объектов особо ценного движимого имущества, в том числе с оставшимся сроком полезного использования"]
[null,null,"менее 12 месяцев","от 12 до 24 месяцев","от 25 до 36 месяцев","от 37 до 48 месяцев","от 49 до 60 месяцев","от 61 до 72 месяцев","от 73 до 84 месяцев","от 85 до 96 месяцев","от 97 до 108 месяцев","от 109 до 120 месяцев","от 121 месяца и более"]
[1,2,23,24,25,26,27,28,29,30,31,32,33]
["Нежилые помещения, здания и сооружения, не отнесенные к недвижимому имуществу",1000,{"v":0,"d":"0.00"},{"v":0,"d":"0.00"},{"v":0,"d":"0.00"},{"v":0,"d":"0.00"},{"v":0,"d":"0.00"},{"v":0,"d":"0.00"},{"v":0,"d":"0.00"},{"v":0,"d":"0.00"},{"v":0,"d":"0.00"},{"v":0,"d":"0.00"},{"v":0,"d":"0.00"}]
["в том числе:",1100]
["для основной деятельности"]
["из них:",1110]
["для оказания услуг (выполнения работ) в рамках утвержденного муниципального задания"]
[]
["для иной деятельности",1200]
["Машины и оборудование",2000,{"v":0,"d":"0.00"},{"v":0,"d":"0.00"},{"v":0,"d":"0.00"},{"v":0,"d":"0.00"},{"v":0,"d":"0.00"},{"v":0,"d":"0.00"},{"v":0,"d":"0.00"},{"v":0,"d":"0.00"},{"v":0,"d":"0.00"},{"v":0,"d":"0.00"},{"v":0,"d":"0.00"}]
["в том числе:",2100]
["для основной деятельности"]
["из них:",2110]
["для оказания услуг (выполнения работ) в рамках утвержденного муниципального задания"]
[]
["для иной деятельности",2200]
["Хозяйственный и производственный инвентарь",3000,{"v":0,"d":"0.00"},{"v":0,"d":"0.00"},{"v":0,"d":"0.00"},{"v":0,"d":"0.00"},{"v":0,"d":"0.00"},{"v":0,"d":"0.00"},{"v":0,"d":"0.00"},{"v":0,"d":"0.00"},{"v":0,"d":"0.00"},{"v":0,"d":"0.00"},{"v":0,"d":"0.00"}]
["в том числе:",3100]
["для основной деятельности"]
["из них:",3110]
["для оказания услуг (выполнения работ) в рамках утвержденного муниципального задания"]
[]
["для иной деятельности",3200]
["Прочие основные средства",4000,{"v":0,"d":"0.00"},{"v":0,"d":"0.00"},{"v":0,"d":"0.00"},{"v":0,"d":"0.00"},{"v":0,"d":"0.00"},{"v":0,"d":"0.00"},{"v":0,"d":"0.00"},{"v":0,"d":"0.00"},{"v":0,"d":"0.00"},{"v":0,"d":"0.00"},{"v":0,"d":"0.00"}]
["в том числе:",4100]
["для основной деятельности"]
["из них:",4110]
["для оказания услуг (выполнения работ) в рамках утвержденного муниципального задания"]
[]
["для иной деятельности",4200]
["Итого",9000,{"v":0,"d":"0.00"},{"v":0,"d":"0.00"},{"v":0,"d":"0.00"},{"v":0,"d":"0.00"},{"v":0,"d":"0.00"},{"v":0,"d":"0.00"},{"v":0,"d":"0.00"},{"v":0,"d":"0.00"},{"v":0,"d":"0.00"},{"v":0,"d":"0.00"},{"v":0,"d":"0.00"}]

{"sheet":"Табл 11-3","index":17,"n_rows":42,"n_cols":11,"rows_kept":42,"merged":[[0,0,0,10],[1,0,4,0],[1,1,4,1],[1,2,4,2],[1,3,1,10],[2,3,2,10],[3,3,3,6],[3,7,4,7],[3,8,4,8],[3,9,4,9],[3,10,4,10],[7,1,8,1],[7,2,8,2],[7,3,8,3],[7,4,8,4],[7,5,8,5],[7,6,8,6],[7,7,8,7],[7,8,8,8],[7,9,8,9],[7,10,8,10],[9,1,10,1],[9,2,10,2],[9,3,10,3],[9,4,10,4],[9,5,10,5],[9,6,10,6],[9,7,10,7],[9,8,10,8],[9,9,10,9],[9,10,10,10],[14,1,15,1],[14,2,15,2],[14,3,15,3],[14,4,15,4],[14,5,15,5],[14,6,15,6],[14,7,15,7],[14,8,15,8],[14,9,15,9],[14,10,15,10],[16,1,17,1],[16,2,17,2],[16,3,17,3],[16,4,17,4],[16,5,17,5],[16,6,17,6],[16,7,17,7],[16,8,17,8],[16,9,17,9],[16,10,17,10],[21,1,22,1],[21,2,22,2],[21,3,22,3],[21,4,22,4],[21,5,22,5],[21,6,22,6],[21,7,22,7],[21,8,22,8],[21,9,22,9],[21,10,22,10],[23,1,24,1],[23,2,24,2],[23,3,24,3],[23,4,24,4],[23,5,24,5],[23,6,24,6],[23,7,24,7],[23,8,24,8],[23,9,24,9],[23,10,24,10],[28,1,29,1],[28,2,29,2],[28,3,29,3],[28,4,29,4],[28,5,29,5],[28,6,29,6],[28,7,29,7],[28,8,29,8],[28,9,29,9],[28,10,29,10],[30,1,31,1],[30,2,31,2],[30,3,31,3],[30,4,31,4],[30,5,31,5],[30,6,31,6],[30,7,31,7],[30,8,31,8],[30,9,31,9],[30,10,31,10],[36,1,37,2],[36,4,37,5],[36,7,37,8],[38,1,38,2],[38,4,38,5],[38,7,38,8],[39,1,39,2],[39,4,39,5],[39,7,39,8],[40,1,40,2],[40,4,40,5],[40,7,40,8],[41,1,41,5]]}
["Раздел 2. Сведения о расходах на содержание особо ценного движимого имущества"]
["Наименование показателя","Код строки","Всего за отчетный период","Расходы на содержание особо ценного движимого имущества"]
[{"$nulls":3},"в том числе:"]
[{"$nulls":3},"на текущее обслуживание",{"$nulls":3},"капитальный ремонт, включая приобретение запасных частей","на уплату налогов","заработная плата обслуживающего персонала","иные расходы"]
[{"$nulls":3},"расходы на периодическое техническое (профилактическое) обслуживание","расходы на текущий ремонт, включая приобретение запасных частей","расходы на обязательное страхование","расходы на добровольное страхование"]
[1,2,3,4,5,6,7,8,9,10,11]
["Нежилые помещения, здания и сооружения, не отнесенные к недвижимому имуществу",1000,{"v":0,"d":"0.00"},{"v":0,"d":"0.00"},{"v":0,"d":"0.00"},{"v":0,"d":"0.00"},{"v":0,"d":"0.00"},{"v":0,"d":"0.00"},{"v":0,"d":"0.00"},{"v":0,"d":"0.00"},{"v":0,"d":"0.00"}]
["в том числе:",1100]
["для основной деятельности"]
["из них:",1110]
["для оказания услуг (выполнения работ) в рамках утвержденного муниципального задания"]
[]
["для иной деятельности",1200]
["Машины и оборудование",2000,{"v":0,"d":"0.00"},{"v":0,"d":"0.00"},{"v":0,"d":"0.00"},{"v":0,"d":"0.00"},{"v":0,"d":"0.00"},{"v":0,"d":"0.00"},{"v":0,"d":"0.00"},{"v":0,"d":"0.00"},{"v":0,"d":"0.00"}]
["в том числе:",2100]
["для основной деятельности"]
["из них:",2110]
["для оказания услуг (выполнения работ) в рамках утвержденного муниципального задания"]
[]
["для иной деятельности",2200]
["Хозяйственный и производственный инвентарь",3000,{"v":0,"d":"0.00"},{"v":0,"d":"0.00"},{"v":0,"d":"0.00"},{"v":0,"d":"0.00"},{"v":0,"d":"0.00"},{"v":0,"d":"0.00"},{"v":0,"d":"0.00"},{"v":0,"d":"0.00"},{"v":0,"d":"0.00"}]
["в том числе:",3100]
["для основной деятельности"]
["из них:",3110]
["для оказания услуг (выполнения работ) в рамках утвержденного муниципального задания"]
[]
["для иной деятельности",3200]
["Прочие основные средства",4000,{"v":0,"d":"0.00"},{"v":0,"d":"0.00"},{"v":0,"d":"0.00"},{"v":0,"d":"0.00"},{"v":0,"d":"0.00"},{"v":0,"d":"0.00"},{"v":0,"d":"0.00"},{"v":0,"d":"0.00"},{"v":0,"d":"0.00"}]
["в том числе:",4100]
["для основной деятельности"]
["из них:",4110]
["для оказания услуг (выполнения работ) в рамках утвержденного муниципального задания"]
[]
["для иной деятельности",4200]
["Итого",9000,{"v":0,"d":"0.00"},{"v":0,"d":"0.00"},{"v":0,"d":"0.00"},{"v":0,"d":"0.00"},{"v":0,"d":"0.00"},{"v":0,"d":"0.00"},{"v":0,"d":"0.00"},{"v":0,"d":"0.00"},{"v":0,"d":"0.00"}]
[]
["Руководитель","Директор",{"$nulls":5},"И.А.Сидорова"]
["(уполномоченное лицо) Учреждения"]
[null,"(должность)",null,null,"(подпись)",null,null,"(расшифровка подписи)"]
["Исполнитель"]
[null,"(должность)",null,null,"(фамилия, инициалы)",null,null,"(телефон)"]
["\"__\" __________ 20__ г."]

{"sheet":"Табл 12","index":18,"n_rows":66,"n_cols":10,"rows_kept":66,"merged":[[0,0,0,7],[3,0,3,7],[6,1,6,7],[7,1,7,7],[8,1,8,7],[11,0,11,9],[12,0,15,0],[12,1,15,1],[12,2,12,9],[13,2,14,3],[13,4,13,9],[14,4,14,5],[14,6,14,7],[14,8,14,9],[19,1,20,1],[19,2,20,2],[19,3,20,3],[19,4,20,4],[19,5,20,5],[19,6,20,6],[19,7,20,7],[19,8,20,8],[19,9,20,9],[38,1,39,1],[38,2,39,2],[38,3,39,3],[38,4,39,4],[38,5,39,5],[38,6,39,6],[38,7,39,7],[38,8,39,8],[38,9,39,9],[45,1,46,1],[45,2,46,2],[45,3,46,3],[45,4,46,4],[45,5,46,5],[45,6,46,6],[45,7,46,7],[45,8,46,8],[45,9,46,9],[65,0,65,14]]}
["Сведения о транспортных средствах"]
[]
[{"$nulls":9},"КОДЫ"]
["на 1 января 2025 г.",{"$nulls":7},"Дата"]
[{"$nulls":8},"по Сводному реестру",86300402]
[{"$nulls":8},"ИНН",1001112534]
["Учреждение","Муниципальное общеобразовательное учреждение \"Средняя общеобразовательная школа № 44\"",{"$nulls":6},"КПП",102001001]
["Орган, осуществляющий функции и полномочия учредителя","Администрация Прионежского муниципального района",{"$nulls":6},"глава по БК","015"]
["Публично-правовое образование","Прионежский муниципальный район",{"$nulls":6},"по ОКТМО",86636410]
["Периодичность: годовая"]
[]
["Раздел 1. Сведения об используемых транспортных средствах"]
["Наименование показателя","Код строки","Транспортные средства, ед"]
[null,null,"всего",null,"в том числе:"]
[{"$nulls":4},"в оперативном управлении учреждения",null,"по договорам аренды",null,"по договорам безвозмездного пользования"]
[null,null,"на отчетную дату","в среднем за год","на отчетную дату","в среднем за год","на отчетную дату","в среднем за год","на отчетную дату","в среднем за год"]
[1,2,3,4,5,6,7,8,9,10]
["Наземные транспортные средства",1000,{"$f":"C32","v":0},{"$f":"D32","v":0},0,0,0,0,0,0]
["автомобили легковые (за исключением автомобилей скорой медицинской помощи), всего",1100]
["в том числе: <30>",1101]
["средней стоимостью менее 3 миллионов рублей, с года выпуска которых прошло не более 3 лет"]
["средней стоимостью менее 3 миллионов рублей, с года выпуска которых прошло более 3 лет",1102]
["средней стоимостью от 3 миллионов до 5 миллионов рублей включительно, с года выпуска которых прошло не более 3 лет",1103]
["средней стоимостью от 3 миллионов до 5 миллионов рублей включительно, с года выпуска которых прошло более 3 лет",1104]
["средней стоимостью от 5 миллионов до 10 миллионов рублей включительно, с года выпуска которых прошло не более 3 лет",1105]
["средней стоимостью от 5 миллионов до 10 миллионов рублей включительно, с года выпуска которых прошло более 3 лет",1106]
["средней стоимостью от 10 миллионов до 15 миллионов рублей включительно",1107]
["средней стоимостью от 15 миллионов рублей",1108]
["автомобили скорой медицинской помощи",1200]
["автомобили грузовые, за исключением специальных",1300]
["специальные грузовые автомашины (молоковозы, скотовозы, специальные машины для перевозки птицы, машины для перевозки минеральных удобрений, ветеринарной помощи, технического обслуживания)",1400]
["автобусы",1500,0,0,0,0,0,0,0,0]
["тракторы самоходные комбайны",1600]
["мотосани, снегоходы",1700]
["прочие самоходные машины и механизмы на пневматическом и гусеничном ходу",1800]
["мотоциклы, мотороллеры",1900]
["Воздушные судна",2000,"х","х","х","х","х","х","х","х"]
["самолеты, всего",2100]
["в том числе: <30>",2101]
["самолеты пассажирские"]
["самолеты грузовые",2102]
["самолеты пожарные",2103]
["самолеты аварийно-технической службы",2104]
["другие самолеты",2105]
["вертолеты, всего",2200]
["в том числе: <30>",2201]
["вертолеты пассажирские"]
["вертолеты грузовые",2202]
["вертолеты пожарные",2203]
["вертолеты аварийно-технической службы",2204]
["другие вертолеты",2205]
["воздушные транспортные средства, не имеющие",2206]
["Водные транспортные средства",3000,"х","х","х","х","х","х","х","х"]
["суда пассажирские морские и речные",3100]
["суда грузовые морские и речные самоходные",3200]
["яхты",3300]
["катера",3400]
["гидроциклы",3500]
["моторные лодки",3600]
["парусно-моторные суда",3700]
["другие водные транспортные средства самоходные",3800]
["несамоходные (буксируемые) суда и иные транспортные средства (водные транспортные средства, не имеющие двигателей)",3900]
["Итого",9000,{"$f":"C18","v":0},{"$f":"D18","v":0},0,0,0,0,0,0]
[]
["--------------------------------"]
["<30> Показатели формируются в случае, если требование о детализации установлено органом, осуществляющим функции и полномочия учредителя."]

{"sheet":"Табл 12-1","index":19,"n_rows":54,"n_cols":11,"rows_kept":54,"merged":[[0,0,0,10],[1,0,3,0],[1,1,3,1],[1,2,1,5],[1,6,1,10],[2,2,3,2],[2,3,2,5],[2,6,3,6],[2,7,2,10],[7,1,8,1],[7,2,8,2],[7,3,8,3],[7,4,8,4],[7,5,8,5],[7,6,8,6],[7,7,8,7],[7,8,8,8],[7,9,8,9],[7,10,8,10],[26,1,27,1],[26,2,27,2],[26,3,27,3],[26,4,27,4],[26,5,27,5],[26,6,27,6],[26,7,27,7],[26,8,27,8],[26,9,27,9],[26,10,27,10],[33,1,34,1],[33,2,34,2],[33,3,34,3],[33,4,34,4],[33,5,34,5],[33,6,34,6],[33,7,34,7],[33,8,34,8],[33,9,34,9],[33,10,34,10],[53,0,53,14]]}
["Раздел 2. Сведения о неиспользуемых транспортных средствах, находящихся в оперативном управлении учреждения"]
["Наименование показателя","Код строки","Передано во временное пользование сторонним организациям (индивидуальным предпринимателям)",{"$nulls":3},"Не используется"]
[null,null,"всего","в том числе:",null,null,"всего","в том числе:"]
[{"$nulls":3},"на основании договоров аренды","на основании договоров безвозмездного пользования","без оформления права пользования",null,"проводится капитальный ремонт и/или реконструкция","в связи с аварийным состоянием (требуется ремонт)","в связи с аварийным состоянием (подлежит списанию) <31>","излишнее имущество (подлежит передаче в казну РФ)"]
[1,2,3,4,5,6,7,8,9,10,11]
["Наземные транспортные средства",1000,"х","х","х","х","х","х","х","х","х"]
["автомобили легковые (за исключением автомобилей скорой медицинской помощи), всего",1100]
["в том числе: <30>",1101]
["средней стоимостью менее 3 миллионов рублей, с года выпуска которых прошло не более 3 лет"]
["средней стоимостью менее 3 миллионов рублей, с года выпуска которых прошло более 3 лет",1102]
["средней стоимостью от 3 миллионов до 5 миллионов рублей включительно, с года выпуска которых прошло не более 3 лет;",1103]
["средней стоимостью от 3 миллионов до 5 миллионов рублей включительно, с года выпуска которых прошло более 3 лет",1104]
["средней стоимостью от 5 миллионов до 10 миллионов рублей включительно, с года выпуска которых прошло не более 3 лет",1105]
["средней стоимостью от 5 миллионов до 10 миллионов рублей включительно, с года выпуска которых прошло более 3 лет",1106]
["средней стоимостью от 10 миллионов до 15 миллионов рублей включительно",1107]
["средней стоимостью от 15 миллионов рублей",1108]
["автомобили скорой медицинской помощи",1200]
["автомобили грузовые, за исключением специальных",1300]
["специальные грузовые автомашины (молоковозы, скотовозы, специальные машины для перевозки птицы, машины для перевозки минеральных удобрений, ветеринарной помощи, технического обслуживания)",1400]
["автобусы",1500]
["тракторы самоходные комбайны",1600]
["мотосани, снегоходы",1700]
["прочие самоходные машины и механизмы на пневматическом и гусеничном ходу",1800]
["мотоциклы, мотороллеры",1900]
["Воздушные судна",2000,"х","х","х","х","х","х","х","х","х"]
["самолеты, всего",2100]
["в том числе: <30>",2101]
["самолеты пассажирские"]
["самолеты грузовые",2102]
["самолеты пожарные",2103]
["самолеты аварийно-технической службы",2104]
["другие самолеты",2105]
["вертолеты, всего",2200]
["в том числе: <30>",2201]
["вертолеты пассажирские"]
["вертолеты грузовые",2202]
["вертолеты пожарные",2203]
["вертолеты аварийно-технической службы",2204]
["другие вертолеты",2205]
["воздушные транспортные средства, не имеющие двигателей",2206]
["Водные транспортные средства",3000,"х","х","х","х","х","х","х","х","х"]
["суда пассажирские морские и речные",3100]
["суда грузовые морские и речные самоходные",3200]
["яхты",3300]
["катера",3400]
["гидроциклы",3500]
["моторные лодки",3600]
["парусно-моторные суда",3700]
["другие водные транспортные средства самоходные",3800]
["несамоходные (буксируемые) суда и иные транспортные средства (водные транспортные средства, не имеющие двигателей)",3900]
["Итого",9000,"х","х","х","х","х","х","х","х","х"]
[]
["--------------------------------"]
["<31> Указываются транспортные средства, в отношении которых принято решение о списании, ожидается согласование органом, осуществляющим функции и полномочия учредителя."]

{"sheet":"Табл 12-2","index":20,"n_rows":56,"n_cols":26,"rows_kept":56,"merged":[[0,0,0,25],[1,0,5,0],[1,1,5,1],[1,2,2,9],[1,10,1,25],[2,10,2,17],[2,18,2,25],[3,2,4,3],[3,4,3,9],[3,10,4,11],[3,12,3,17],[3,18,4,19],[3,20,3,25],[4,4,4,5],[4,6,4,7],[4,8,4,9],[4,12,4,13],[4,14,4,15],[4,16,4,17],[4,20,4,21],[4,22,4,23],[4,24,4,25],[9,1,10,1],[9,2,10,2],[9,3,10,3],[9,4,10,4],[9,5,10,5],[9,6,10,6],[9,7,10,7],[9,8,10,8],[9,9,10,9],[9,10,10,10],[9,11,10,11],[9,12,10,12],[9,13,10,13],[9,14,10,14],[9,15,10,15],[9,16,10,16],[9,17,10,17],[9,18,10,18],[9,19,10,19],[9,20,10,20],[9,21,10,21],[9,22,10,22],[9,23,10,23],[9,24,10,24],[9,25,10,25],[28,1,29,1],[28,2,29,2],[28,3,29,3],[28,4,29,4],[28,5,29,5],[28,6,29,6],[28,7,29,7],[28,8,29,8],[28,9,29,9],[28,10,29,10],[28,11,29,11],[28,12,29,12],[28,13,29,13],[28,14,29,14],[28,15,29,15],[28,16,29,16],[28,17,29,17],[28,18,29,18],[28,19,29,19],[28,20,29,20],[28,21,29,21],[28,22,29,22],[28,23,29,23],[28,24,29,24],[28,25,29,25],[35,1,36,1],[35,2,36,2],[35,3,36,3],[35,4,36,4],[35,5,36,5],[35,6,36,6],[35,7,36,7],[35,8,36,8],[35,9,36,9],[35,10,36,10],[35,11,36,11],[35,12,36,12],[35,13,36,13],[35,14,36,14],[35,15,36,15],[35,16,36,16],[35,17,36,17],[35,18,36,18],[35,19,36,19],[35,20,36,20],[35,21,36,21],[35,22,36,22],[35,23,36,23],[35,24,36,24],[35,25,36,25],[55,0,55,14]]}
["Раздел 3. Направления использования транспортных средств"]
["Наименование показателя","Код строки","Транспортные средства, непосредственно используемые в целях оказания услуг, выполнения работ",{"$nulls":7},"Транспортные средства, используемые в общехозяйственных целях"]
[{"$nulls":10},"в целях обслуживания административно-управленческого персонала",{"$nulls":7},"в иных целях <32>"]
[null,null,"всего",null,"в том числе:",{"$nulls":5},"всего",null,"в том числе:",{"$nulls":5},"всего",null,"в том числе:"]
[{"$nulls":4},"в оперативном управлении учреждения, ед.",null,"по договорам аренды, ед.",null,"по договорам безвозмездного пользования, ед.",{"$nulls":3},"в оперативном управлении учреждения, ед.",null,"по договорам аренды, ед.",null,"по договорам безвозмездного пользования, ед.",{"$nulls":3},"в оперативном управлении учреждения, ед.",null,"по договорам аренды, ед.",null,"по договорам безвозмездного пользования, ед."]
[null,null,"на отчетную дату","в среднем за год","на отчетную дату","в среднем за год","на отчетную дату","в среднем за год","на отчетную дату","в среднем за год","на отчетную дату","в среднем за год","на отчетную дату","в среднем за год","на отчетную дату","в среднем за год","на отчетную дату","в среднем за год","на отчетную дату","в среднем за год","на отчетную дату","в среднем за год","на отчетную дату","в среднем за год","на отчетную дату","в среднем за год"]
[1,2,3,4,5,6,7,8,9,10,11,12,13,14,15,16,17,18,19,20,21,22,23,24,25,26]
["Наземные транспортные средства",1000,{"$f":"C22","v":0},{"$f":"D22","v":0},0,0,0,0,0,0,0,0,0,0,0,0,0,0,0,0,0,0,0,0,0,0]
["автомобили легковые (за исключением автомобилей скорой медицинской помощи), всего",1100]
["в том числе: <30>",1101]
["средней стоимостью менее 3 миллионов рублей, с года выпуска которых прошло не более 3 лет"]
["средней стоимостью менее 3 миллионов рублей, с года выпуска которых прошло более 3 лет",1102]
["средней стоимостью от 3 миллионов до 5 миллионов рублей включительно, с года выпуска которых прошло не более 3 лет",1103]
["средней стоимостью от 3 миллионов до 5 миллионов рублей включительно, с года выпуска которых прошло более 3 лет",1104]
["средней стоимостью от 5 миллионов до 10 миллионов рублей включительно, с года выпуска которых прошло не более 3 лет",1105]
["средней стоимостью от 5 миллионов до 10 миллионов рублей включительно, с года выпуска которых прошло более 3 лет",1106]
["средней стоимостью от 10 миллионов до 15 миллионов рублей включительно",1107]
["средней стоимостью от 15 миллионов рублей",1108]
["автомобили скорой медицинской помощи",1200]
["автомобили грузовые, за исключением специальных",1300]
["специальные грузовые автомашины (молоковозы, скотовозы, специальные машины для перевозки птицы, машины для перевозки минеральных удобрений, ветеринарной помощи, технического обслуживания)",1400]
["автобусы",1500,0,0,0,0,0,0,0,0,0,0,0,0,0,0,0,0,0,0,0,0,0,0,0,0]
["тракторы самоходные, комбайны",1600]
["мотосани, снегоходы",1700]
["прочие самоходные машины и механизмы на пневматическом и гусеничном ходу",1800]
["мотоциклы, мотороллеры",1900]
["Воздушные судна",2000,"х","х","х","х","х","х","х","х","х","х","х","х","х","х","х","х","х","х","х","х","х","х","х","х"]
["самолеты, всего",2100]
["в том числе: <30>",2101]
["самолеты пассажирские"]
["самолеты грузовые",2102]
["самолеты пожарные",2103]
["самолеты аварийно-технической службы",2104]
["другие самолеты",2105]
["вертолеты, всего",2200]
["в том числе: <30>",2201]
["вертолеты пассажирские"]
["вертолеты грузовые",2202]
["вертолеты пожарные",2203]
["вертолеты аварийно-технической службы",2204]
["другие вертолеты",2205]
["воздушные транспортные средства, не имеющие двигателей",2206]
["Водные транспортные средства",3000,"х","х","х","х","х","х","х","х","х","х","х","х","х","х","х","х","х","х","х","х","х","х","х","х"]
["суда пассажирские морские и речные",3100]
["суда грузовые морские и речные самоходные",3200]
["яхты",3300]
["катера",3400]
["гидроциклы",3500]
["моторные лодки",3600]
["парусно-моторные суда",3700]
["другие водные транспортные средства самоходные",3800]
["несамоходные (буксируемые) суда и иные транспортные средства (водные транспортные средства, не имеющие двигателей)",3900]
["Итого",9000,{"$f":"C8","v":0},{"$f":"D8","v":0},0,0,0,0,0,0,0,0,0,0,0,0,0,0,0,0,0,0,0,0,0,0]
[]
["--------------------------------"]
["<32> Указываются транспортные средства, используемые в целях уборки территории, вывоза мусора, перевозки имущества (грузов), а также в целях перевозки людей."]

{"sheet":"Табл 12-3","index":21,"n_rows":60,"n_cols":15,"rows_kept":60,"merged":[[0,0,0,14],[1,0,4,0],[1,1,4,1],[1,2,1,14],[2,2,4,2],[2,3,2,14],[3,3,3,8],[3,9,3,10],[3,11,3,13],[3,14,4,14],[8,1,10,1],[8,2,10,2],[8,3,10,3],[8,4,10,4],[8,5,10,5],[8,6,10,6],[8,7,10,7],[8,8,10,8],[8,9,10,9],[8,10,10,10],[8,11,10,11],[8,12,10,12],[8,13,10,13],[8,14,10,14],[28,1,29,1],[28,2,29,2],[28,3,29,3],[28,4,29,4],[28,5,29,5],[28,6,29,6],[28,7,29,7],[28,8,29,8],[28,9,29,9],[28,10,29,10],[28,11,29,11],[28,12,29,12],[28,13,29,13],[28,14,29,14],[35,1,36,1],[35,2,36,2],[35,3,36,3],[35,4,36,4],[35,5,36,5],[35,6,36,6],[35,7,36,7],[35,8,36,8],[35,9,36,9],[35,10,36,10],[35,11,36,11],[35,12,36,12],[35,13,36,13],[35,14,36,14],[54,1,55,3],[54,4,55,4],[54,6,55,8],[54,10,55,12],[56,1,56,3],[56,6,56,8],[56,10,56,12],[57,1,57,3],[57,6,57,8],[57,10,57,12],[58,1,58,3],[58,6,58,8],[58,10,58,12],[59,1,59,5]]}
["Раздел 4. Сведения о расходах на содержание транспортных средств"]
["Наименование показателя","Код строки","Расходы на содержание транспортных средств"]
[null,null,"всего за отчетный период","в том числе:"]
[{"$nulls":3},"на обслуживание транспортных средств",{"$nulls":5},"содержание гаражей",null,"заработная плата обслуживающего персонала",null,null,"уплата транспортного налога"]
[{"$nulls":3},"расходы на горюче-смазочные материалы","приобретение (замена) колес, шин, дисков","расходы на ОСАГО","расходы на добровольное страхование","ремонт, включая приобретение запасных частей","техобслуживание сторонними организациями","аренда гаражей, парковочных мест","содержание гаражей","водителей","обслуживающего персонала гаражей","административного персонала гаражей"]
[1,2,3,4,5,6,7,8,9,10,11,12,13,14,15]
["Наземные транспортные средства",1000,"х","х","х","х","х","х","х","х","х","х","х","х","х"]
["автомобили легковые (за исключением автомобилей скорой медицинской помощи), всего",1100]
["в том числе: <30>",1101]
["средней стоимостью менее 3 миллионов рублей, с года"]
["выпуска которых прошло не более 3 лет"]
["средней стоимостью менее 3 миллионов рублей, с года выпуска которых прошло более 3 лет",1102]
["средней стоимостью от 3 миллионов до 5 миллионов рублей включительно, с года выпуска которых прошло не более 3 лет;",1103]
["средней стоимостью от 3 миллионов до 5 миллионов рублей включительно, с года выпуска которых прошло более 3 лет",1104]
["средней стоимостью от 5 миллионов до 10 миллионов рублей включительно, с года выпуска которых прошло не более 3 лет",1105]
["средней стоимостью от 5 миллионов до 10 миллионов рублей включительно, с года выпуска которых прошло более 3 лет",1106]
["средней стоимостью от 10 миллионов до 15 миллионов рублей включительно",1107]
["средней стоимостью от 15 миллионов рублей",1108]
["автомобили скорой медицинской помощи",1200]
["автомобили грузовые, за исключением специальных",1300]
["специальные грузовые автомашины (молоковозы, скотовозы, специальные машины для перевозки птицы, машины для перевозки минеральных удобрений, ветеринарной помощи, технического обслуживания)",1400]
["автобусы",1500]
["тракторы самоходные комбайны",1600]
["мотосани, снегоходы",1700]
["прочие самоходные машины и механизмы на пневматическом и гусеничном ходу",1800]
["мотоциклы, мотороллеры",1900]
["Воздушные судна",2000,"х","х","х","х","х","х","х","х","х","х","х","х","х"]
["самолеты, всего",2100]
["в том числе: <30>",2101]
["самолеты пассажирские"]
["самолеты грузовые",2102]
["самолеты пожарные",2103]
["самолеты аварийно-технической службы",2104]
["другие самолеты",2105]
["вертолеты, всего",2200]
["в том числе: <30>",2201]
["вертолеты пассажирские"]
["вертолеты грузовые",2202]
["вертолеты пожарные",2203]
["вертолеты аварийно-технической службы",2204]
["другие вертолеты",2205]
["воздушные транспортные средства, не имеющие двигателей",2206]
["Водные транспортные средства",3000,"х","х","х","х","х","х","х","х","х","х","х","х","х"]
["суда пассажирские морские и речные",3100]
["суда грузовые морские и речные самоходные",3200]
["яхты",3300]
["катера",3400]
["гидроциклы",3500]
["моторные лодки",3600]
["парусно-моторные суда",3700]
["другие водные транспортные средства самоходные",3800]
["несамоходные (буксируемые) суда и иные транспортные средства (водные транспортные средства, не имеющие двигателей)",3900]
["Итого",9000,"х","х","х","х","х","х","х","х","х","х","х","х","х"]
[]
["Руководитель","Директор",{"$nulls":8},"И.А.Сидорова"]
["(уполномоченное лицо) Учреждения"]
[null,"(должность)",{"$nulls":4},"(подпись)",{"$nulls":3},"(расшифровка подписи)"]
["Исполнитель"]
[null,"(должность)",{"$nulls":4},"(фамилия, инициалы)",{"$nulls":3},"(телефон)"]
["\"__\" __________ 20__ г."]